Cogmind - Beta 16 @@@ ROGUE MODE // 2026.01.13 @ 20:39:53 Player: Xcalibur Result: Escaped! Performance ------------- Evolutions (9) 4500 Regions Visited (30) 6000 Robots Destroyed (327) 1635 Value Destroyed (21897) 21897 Prototype IDs (48) 960 Alien Tech Used (0) 0 Bonus (18149) 18149 TOTAL SCORE: 53141 Bonus ------- High Alert Combat Kills 4384 Follower Combat Kills 3485 Entered Garrisons 2000 Used RIF Installer 5000 Aligned with FarCom 300 Win 3000 Friendly Fire -20 Cogmind --------- Core Integrity 1296/1600 Matter 191/300 Energy 579/600 System Corruption 32% Temperature Cool (12) Movement Treading (250) Ox1 Location To Epsilon Eridani Parts ------- > --- POWER (2) -------- Reinforced Quantum Reactor Reinforced Quantum Reactor > --- PROPULSION (6) --- Armored Heavy Treads Armored Heavy Treads Armored Heavy Treads > --- UTILITY (13) ----- Advanced Cooling System Advanced Coolant Injector Huge Storage Unit Advanced Targeting Computer Advanced Target Analyzer Improved Transmission Jammer Heavy Armor Plating Graphene Brace Advanced Force Field Relay Coupler [NC] (3) Relay Coupler [Sentry] (50) Relay Coupler [Behemoth] (1) > --- WEAPON (4) ------- XL Autogun Subcomponent XL Autogun Subcomponent XL Autogun Subcomponent XL Autogun Subcomponent > --- INVENTORY (25) --- Reinforced Antimatter Reactor Heavy Armor Plating Relay Coupler [Heavy] (22) High-powered Tractor Beam Enhanced Quantum Rifle Enhanced Nova Cannon Firepult Enhanced Hardcell Cannon Enhanced Hardcell Cannon Micro-nuke Launcher Advanced Remote Datajack Advanced Remote Datajack Ionic Axe Peak State ------------ > --- POWER ------------ Reinforced Quantum Reactor Reinforced Quantum Reactor > --- PROPULSION ------- Armored Heavy Treads Armored Heavy Treads Advanced Heavy Siege Treads > --- UTILITY ---------- Advanced Cooling System Huge Storage Unit Advanced Targeting Computer Advanced Target Analyzer Advanced Phase Shifter Layered Heavy Armor Plating Graphene Brace Advanced Force Field Relay Coupler [NC] Relay Coupler [Swarmer] Relay Coupler [Sentry] Relay Coupler [Behemoth] > --- WEAPON ----------- Enhanced Quantum Rifle Railgun Multirail Enhanced Hardcell Cannon > --- INVENTORY -------- Reinforced Antimatter Reactor Armored Heavy Treads Armored Heavy Treads Advanced Coolant Injector Superbattery Improved Transmission Jammer Improved Light Armor Plating Heavy Reflective Plating Relay Coupler [Heavy] High-powered Tractor Beam Enhanced Nova Cannon Firepult XL Autogun Array Micro-nuke Launcher Advanced Remote Datajack Advanced Remote Datajack Advanced Remote Datajack Ionic Axe [Rating: 191] Favorites ----------- Power Reinforced Quantum Reactor Engine Reinforced Ion Engine Power Core Neutrino Core Reactor Reinforced Quantum Reactor Propulsion Armored Heavy Treads Treads Armored Heavy Treads Leg Carbon-fiber Leg Wheel Armored Wheel Hover Unit Antigrav System Utility Advanced Targeting Computer Device Graphene Brace Storage Large Storage Unit Processor Advanced Targeting Computer Hackware Relay Coupler [Grunt] Protection Damper Plating Weapon Railgun Energy Gun Wave Gun Energy Cannon Phase Cannon Ballistic Gun Railgun Ballistic Cannon Enhanced Hardcell Cannon Launcher Micro-nuke Launcher Special Weapon Remote Datajack Slashing Weapon Power Sword Piercing Weapon Force Lance Build | -11 -10 -10 -10 -9 -8 -8 -8 -8 -7 -7 -6 -6 -5 -5 -5 -5 -4 -4 -4 -4 -4 -4 -3 -2 -2 -2 -2 -1 -1 -1 ------- Run | Yrd Mat Min Exi Min Mat Gar Mat Gar Fac Gar Fac Gar Fac Was Fac Gar Fac Was Fac Gar Fac Gar Res Res Gar Res Gar Acc Gar Acc Slots Evolved 18 | . . . . . 4 . . . 2 . 2 . 2 . . . 2 . . . . . 2 2 . . . 2 . . Power 1 | . . . . . . . . . . . . . . . . . . . . . . . . . . . . 1 . . Propulsion 4 | . . . . . 1 . . . . . . . 1 . . . . . . . . . . 2 . . . . . . Utility 11 | . . . . . 1 . . . 2 . 2 . 1 . . . 2 . . . . . 2 . . . . 1 . . Weapon 2 | . . . . . 2 . . . . . . . . . . . . . . . . . . . . . . . . . Parts Attached 307 | 7 3 2 . . 8 8 3 10 13 9 28 29 11 8 5 3 2 3 2 7 1 23 19 7 8 24 16 1 21 26 Power 19 | 1 . . . . . 2 . . . 1 2 1 1 1 1 . . . . . . 1 2 2 . 2 1 . 1 . Engine 5 | 1 . . . . . 2 . . . 1 . 1 . . . . . . . . . . . . . . . . . . Core 4 | . . . . . . . . . . . 2 . 1 . 1 . . . . . . . . . . . . . . . Reactor 10 | . . . . . . . . . . . . . . 1 . . . . . . . 1 2 2 . 2 1 . 1 . Propulsion 52 | 2 . 1 . . 2 2 . . 1 3 5 6 4 4 . . . 2 . 1 . 4 1 2 2 5 1 . . 4 Treads 36 | 1 . 1 . . 1 2 . . . . . 2 4 4 . . . 2 . 1 . 4 1 2 2 4 1 . . 4 Leg 8 | . . . . . . . . . . 3 2 3 . . . . . . . . . . . . . . . . . . Wheel 7 | 1 . . . . 1 . . . 1 . 3 1 . . . . . . . . . . . . . . . . . . Hover 1 | . . . . . . . . . . . . . . . . . . . . . . . . . . 1 . . . . Flight . | . . . . . . . . . . . . . . . . . . . . . . . . . . . . . . . Utility 143 | 2 2 1 . . 3 2 1 4 8 4 12 11 3 3 3 1 2 1 . 5 1 10 9 3 3 11 12 1 13 12 Device 51 | 1 . . . . . 2 . . 3 2 5 3 2 . 1 . 1 . . 1 . 3 3 1 2 6 4 . 6 5 Storage 8 | 1 2 . . . . . . . . . . . . . 2 . . . . 1 . . . . . 2 . . . . Processor 10 | . . . . . 1 . 1 . 1 . . . . . . . . . . . . 2 2 1 . 1 1 . . . Hackware 46 | . . . . . . . . 3 3 2 3 4 1 1 . 1 1 . . 3 1 5 2 . . 1 6 . 6 3 Protection 28 | . . 1 . . 2 . . 1 1 . 4 4 . 2 . . . 1 . . . . 2 1 1 1 1 1 1 4 Artifact . | . . . . . . . . . . . . . . . . . . . . . . . . . . . . . . . Weapon 93 | 2 1 . . . 3 2 2 6 4 1 9 11 3 . 1 2 . . 2 1 . 8 7 . 3 6 2 . 7 10 Energy Gun 28 | 1 . . . . 1 2 . 1 2 1 2 5 1 . 1 1 . . . . . 2 1 . . 2 1 . 3 1 Energy Cannon 8 | . . . . . . . . 3 . . 1 . . . . . . . . . . . 2 . 1 . . . . 1 Ballistic Gun 36 | 1 . . . . 2 . 2 1 . . 4 5 1 . . . . . 2 . . 4 3 . . 1 1 . 4 5 Ballistic Cannon 4 | . . . . . . . . . . . . . 1 . . . . . . . . . . . . 2 . . . 1 Launcher 2 | . . . . . . . . . . . 1 . . . . . . . . . . . . . 1 . . . . . Special Weapon 12 | . 1 . . . . . . 1 1 . 1 1 . . . 1 . . . 1 . 2 1 . . . . . . 2 Impact Weapon . | . . . . . . . . . . . . . . . . . . . . . . . . . . . . . . . Slashing Weapon 2 | . . . . . . . . . 1 . . . . . . . . . . . . . . . . 1 . . . . Piercing Weapon 1 | . . . . . . . . . . . . . . . . . . . . . . . . . 1 . . . . . Special Melee Weapon . | . . . . . . . . . . . . . . . . . . . . . . . . . . . . . . . Unidentified Prototypes 11 | . . . . . . . 1 . . . 3 . . . 1 . . . . . . . 2 . . 2 . . . 2 Corrupted Parts 1 | . . . . . . . . . . . . . . . . . . . . . . . . . . . 1 . . . System Corruption 8 | . . . . . . . . . . . . . . . . . . . . . . . . . . . 8 . . . Parts Lost 83 | . . . . . . 1 . 2 4 1 15 14 . . . . . . . . . 11 . 11 4 3 7 . . 10 Power 5 | . . . . . . 1 . . . . 1 1 . . . . . . . . . 1 . 1 . . . . . . Propulsion 19 | . . . . . . . . . 2 1 4 2 . . . . . . . . . 2 . 3 . 2 . . . 3 Utility 31 | . . . . . . . . . . . 4 5 . . . . . . . . . 3 . 3 2 1 6 . . 7 Weapon 28 | . . . . . . . . 2 2 . 6 6 . . . . . . . . . 5 . 4 2 . 1 . . . Highest Loss Streak 13 | . . . . . . 1 . 1 2 1 13 5 . . . . . . . . . 9 . 7 2 1 3 . . 5 To Critical Strikes 1 | . . . . . . . . . . . 1 . . . . . . . . . . . . . . . . . . . Average Backups 13 | 3 9 11 11 11 10 10 11 10 10 10 9 10 10 11 11 15 14 15 15 14 14 13 13 11 8 13 17 18 18 16 Power . | . 1 1 1 1 1 . 1 . . . . 1 1 1 . . 1 1 1 1 1 . . . . 1 1 1 1 1 Propulsion 1 | 1 2 4 4 3 2 1 . . . . . . . 2 2 2 2 1 2 1 1 1 2 1 . 2 2 3 2 1 Utility 6 | . 3 4 3 3 2 6 6 6 6 7 6 5 5 4 5 7 6 6 6 7 6 3 5 4 3 4 7 7 9 6 Weapon 3 | . 2 2 2 4 4 2 2 3 3 2 2 2 2 2 3 4 4 5 5 4 5 5 4 3 3 3 4 5 4 5 Tool/Special . | . . . . . . . . . . . . . . . . . . . . . . . . . . . . . . . Unused Backups 63 | . 1 . 2 . . 3 . 2 . 5 1 3 . 1 1 9 . 3 1 3 1 2 4 2 . 2 3 1 9 4 Power 9 | . 1 . . . . . . 1 . . . 1 . . 1 . . 2 . . . . 1 1 . . . . . 1 Propulsion 12 | . . . 1 . . 1 . . . . . 1 . . . . . 1 . . . . . 1 . 2 2 1 2 . Utility 33 | . . . 1 . . 1 . 1 . 5 1 1 . 1 . 7 . . . 1 1 . 3 . . . 1 . 7 2 Weapon 8 | . . . . . . 1 . . . . . . . . . 2 . . 1 2 . 2 . . . . . . . . Tool/Special 1 | . . . . . . . . . . . . . . . . . . . . . . . . . . . . . . 1 Average Slot Usage (%) 84 | . 100 100 100 100 94 99 97 99 93 98 85 92 93 77 70 70 72 73 72 73 73 82 85 72 65 77 77 86 84 82 Engine 2 | . 14 14 14 14 9 9 9 9 7 7 4 5 2 . . . . . . . . . . . . . . . . . Reactor 3 | . . . . . . . . . . . . . . 4 4 5 5 5 5 5 5 5 4 4 4 4 4 8 8 8 Treads 10 | . 14 14 14 14 17 18 18 18 9 . . 2 11 14 11 11 10 10 10 10 10 10 9 12 9 13 13 12 12 12 Leg 1 | . . . . . . . . . . 13 6 16 3 . . . . . . . . . . . . . . . . . Wheel 2 | . 14 13 14 14 9 9 9 9 8 7 9 . 3 . . . . . . . . . . . . . . . . . Device 10 | . 14 7 . 11 3 1 9 6 4 6 4 5 7 8 5 5 10 10 10 9 10 14 16 12 16 19 14 24 20 16 Storage 5 | . 14 14 14 14 9 9 9 9 7 7 6 6 5 5 5 5 5 5 5 5 5 5 4 4 4 4 4 4 4 4 Processor 6 | . . . . . 3 9 9 9 7 7 6 6 5 5 5 5 5 5 5 5 5 8 5 4 4 4 6 8 8 8 Hackware 10 | . . . . . . . . 1 10 9 16 16 19 6 5 5 9 10 10 10 10 16 24 16 13 13 13 12 12 15 Protection 4 | . . 7 14 2 10 7 . . 4 5 5 6 5 5 5 5 5 5 5 5 5 . 1 3 4 3 2 2 3 4 Energy Gun 7 | . 11 12 14 14 16 17 15 13 4 15 8 10 5 4 10 11 10 10 7 4 4 4 5 2 . 4 4 8 5 2 Energy Cannon 1 | . . . . . . . . 2 11 7 4 . . . . . . . . . . . 1 3 4 . . . . . Ballistic Gun 8 | . 14 14 14 14 14 18 18 18 11 4 6 10 13 7 5 5 5 5 7 10 10 13 10 5 . 2 . . 4 7 Ballistic Cannon 2 | . . . . . . . . . . . . . . 5 4 5 5 1 5 5 5 . . . . 3 7 8 5 3 Peak Build Rating 191 | 7 8 8 14 14 27 28 33 41 46 49 68 79 95 105 105 108 115 116 117 122 119 125 150 171 163 167 167 178 178 191 Average Rating 101 | 5 7 8 9 14 22 24 29 33 42 45 51 55 73 99 102 107 114 115 116 118 116 115 137 160 133 155 154 177 174 179 On Entrance 82 | . 7 8 8 14 14 23 28 33 41 41 49 47 62 95 100 105 107 115 116 117 119 117 125 150 113 127 161 167 178 177 Avg Prop Armor Cover (%) 10 | 13 12 13 13 13 14 13 14 13 10 8 5 7 12 . . . . . . . . . . . . . . . . . Naked Turns . | . . . . . . . . . . . . . . . . . . . . . . . . . . . . . . . Heaviest Build 213 | 12 27 27 27 27 37 42 43 61 68 58 65 61 76 110 131 131 139 139 140 140 140 141 117 117 101 171 175 195 208 213 Greatest Support 215 | 20 16 16 16 16 16 40 12 12 22 22 20 55 108 140 140 140 140 140 140 140 140 160 160 215 205 210 200 200 200 200 Greatest Overweight (x) 9 | 1 1 1 1 1 3 3 3 5 5 5 9 4 3 . . . . . . . . 1 . . . . . . 1 1 Average Overweight (x) 1 | . . 1 1 1 1 2 3 3 3 4 3 . 2 . . . . . . . . . . . . . . . . . Largest Inventory Capacity 25 | 8 15 15 15 15 15 15 15 15 15 15 15 15 15 15 20 20 20 20 20 20 20 20 20 20 20 25 25 25 25 25 Average Capacity 18 | 7 12 15 15 15 15 15 15 15 15 15 15 15 15 15 16 20 20 20 20 20 20 20 20 20 20 20 25 25 25 25 Most Carried 25 | 7 11 12 15 15 15 15 15 15 15 15 15 15 15 15 20 20 19 20 20 20 20 20 20 20 15 22 25 25 25 25 Average Carried 17 | 3 9 11 12 15 14 14 14 14 14 14 13 14 14 14 15 19 18 19 19 19 18 18 19 17 12 19 24 24 24 22 Final Capacity 25 | 8 15 15 15 15 15 15 15 15 15 15 15 15 15 15 20 20 20 20 20 20 20 20 20 20 20 25 25 25 25 25 Final Carried 25 | 7 11 12 15 15 15 15 15 15 15 15 12 15 15 15 20 20 19 20 20 20 19 20 20 17 15 22 25 25 25 15 Class Distribution -------------------- 19% | Botlord-Tank 18% | Bothacker-Gunner 17% | Scavenger-Tank 14% | Bothacker-Tank 6% | Mutant 5% | Bothacker-Skirmisher 5% | Botlord-Gunner 4% | Scavenger-Mutant 3% | Skirmisher Dominant Class ---------------- Mutant | -10/Materials Mutant | -10/Mines Mutant | -10/Exiles Mutant | -9/Mines Skirmisher | -8/Materials Skirmisher | -8/Garrison Bothacker-Skirmisher | -8/Materials Bothacker-Skirmisher | -8/Garrison Bothacker-Gunner | -7/Factory Bothacker-Gunner | -7/Garrison Bothacker-Gunner | -6/Factory Bothacker-Gunner | -6/Garrison Bothacker-Gunner | -5/Factory Scavenger-Tank | -5/Waste Scavenger-Tank | -5/Factory Bothacker-Tank | -5/Garrison Bothacker-Tank | -4/Factory Bothacker-Tank | -4/Waste Bothacker-Tank | -4/Factory Bothacker-Tank | -4/Garrison Tank | -4/Factory Botlord-Gunner | -4/Garrison Botlord-Tank | -3/Research Bothacker-Tank | -2/Research Scavenger-Mutant | -2/Garrison Scavenger-Tank | -2/Research Scavenger-Tank | -2/Garrison Botlord-Tank | -1/Access Botlord-Tank | -1/Garrison Botlord-Tank | -1/Access Resources | -11 -10 -10 -10 -9 -8 -8 -8 -8 -7 -7 -6 -6 -5 -5 -5 -5 -4 -4 -4 -4 -4 -4 -3 -2 -2 -2 -2 -1 -1 -1 ----------- Run | Yrd Mat Min Exi Min Mat Gar Mat Gar Fac Gar Fac Gar Fac Was Fac Gar Fac Was Fac Gar Fac Gar Res Res Gar Res Gar Acc Gar Acc Matter Collected 14214 | 246 62 59 . . . 318 50 161 694 293 579 818 237 175 406 12 77 82 . 714 396 1483 575 583 201 757 1117 . 934 3185 Remotely 3656 | . . . . . . . . . . . . . . . . . . . . 228 . 233 126 322 137 39 517 . 60 1994 Salvage Created 18587 | 20 27 50 . . . 508 92 476 880 819 1135 622 229 1184 792 64 81 218 . 700 300 1353 332 610 762 1131 1163 . 1187 3852 Parts 758 | 4 4 8 . . . 27 2 42 42 40 52 28 13 8 38 4 3 5 . 38 11 56 16 23 16 34 28 . 36 180 Haulers Intercepted 2 | . . . . . . . . . . . . . . . 1 . . . . . 1 . . . . . . . . . Recyclers Shooed 8 | . . . . . . . . . 1 . 1 . 1 . . . . . . . . . . . . 2 . . . 3 Parts Field Recycled . | . . . . . . . . . . . . . . . . . . . . . . . . . . . . . . . Retrieved Matter . | . . . . . . . . . . . . . . . . . . . . . . . . . . . . . . . Parts Self-Destructed . | . . . . . . . . . . . . . . . . . . . . . . . . . . . . . . . Prevented . | . . . . . . . . . . . . . . . . . . . . . . . . . . . . . . . Parts Restored . | . . . . . . . . . . . . . . . . . . . . . . . . . . . . . . . Kills | -11 -10 -10 -10 -9 -8 -8 -8 -8 -7 -7 -6 -6 -5 -5 -5 -5 -4 -4 -4 -4 -4 -4 -3 -2 -2 -2 -2 -1 -1 -1 ------- Run | Yrd Mat Min Exi Min Mat Gar Mat Gar Fac Gar Fac Gar Fac Was Fac Gar Fac Was Fac Gar Fac Gar Res Res Gar Res Gar Acc Gar Acc Combat Hostiles Destroyed 270 | . . 3 . . . 11 . 10 8 18 13 14 3 4 13 . 1 1 . 18 3 24 5 11 12 12 20 . 16 50 Melee 3 | . . . . . . . . . . . . . . . . . . . . 1 . 1 . . . 1 . . . . Guns 164 | . . 3 . . . 9 . 9 4 11 8 10 3 . 13 . 1 1 . 15 1 21 3 7 . 7 5 . 6 27 Cannons 48 | . . . . . . . . 1 4 2 2 . . . . . . . . 2 2 2 1 2 6 4 4 . 6 10 AOE 26 | . . . . . . . . . . 4 1 3 . . . . . . . . . . . . 6 . 7 . 1 4 Classes Destroyed 21 | 1 . 1 . . . 4 1 2 4 . 2 1 . 1 1 . . . . . . 1 . 1 . . . . . 1 Worker 20 | . . . . . . . . . 7 . 2 . 2 . 2 . . . . . 1 . . . . 2 . . . 4 Builder 9 | . . . . . . . . . . . 1 . . . . . . . . . . . . . . . . . . 8 Tunneler 3 | 1 1 . . . . . . . . . . . . . . . . . . . . . 1 . . . . . . . Hauler 2 | . . . . . . . . . . . . . . . 1 . . . . . 1 . . . . . . . . . Recycler 9 | . . . . . . . 1 . 2 . 3 . . . 1 . . . . . . . . . . 2 . . . . Mechanic 1 | . . . . . . . . . . . . . . . . . . . . . . . . . . . . . . 1 Watcher 11 | . . . . . . . . . 4 . 2 . . . . . . . . . 1 . . . . 1 . . . 3 Swarmer 50 | . . 3 . . . . . 1 . 3 5 5 . . 7 . . . . 8 . 4 . 7 3 . 4 . . . Cutter 5 | . . . . . . . . 2 . . . . . . . . . . . 3 . . . . . . . . . . Saboteur 2 | . . . . . . . . . . . . . . . . . . . . . . 2 . . . . . . . . Grunt 77 | . . . . . . 7 . 3 4 11 . 3 . . 3 . 1 . . . 1 3 . . 2 1 8 . 9 21 Brawler 9 | . . . . . . 1 . . . . . 1 . . 1 . . . . 1 . . . . . . 2 . . 3 Duelist 7 | . . . . . . . . . . . . . . . . . . . . . . . . 3 . 1 1 . . 2 Sentry 8 | . . . . . . 1 . . . . 2 1 1 . . . . . . . . 2 . . . 1 . . . . Demolisher 1 | . . . . . . . . . . . . 1 . . . . . . . . . . . . . . . . . . Specialist 2 | . . . . . . . . 2 . . . . . . . . . . . . . . . . . . . . . . Hunter 34 | . . . . . . . . . 1 2 4 . 2 . . . . . . 3 . 4 1 . 6 4 . . 3 4 Programmer 63 | . . . . . . 2 . 3 3 2 1 2 . . 2 . . . . 3 2 8 4 . . 5 4 . 4 18 Heavy 1 | . . . . . . . . . 1 . . . . . . . . . . . . . . . . . . . . . Behemoth 8 | . . . . . . . . . . . 1 1 . . . . . . . . . 1 . 1 1 . 1 . . 2 Compactor 5 | . . . . . . . . . . . . . . 4 . . . 1 . . . . . . . . . . . . Best Kill Streak 13 | 1 1 3 . . . 3 1 3 5 3 10 4 4 2 4 . 1 1 . 4 2 6 2 6 6 3 10 . 3 13 Combat Bots Only 11 | . . 3 . . . 3 . 3 2 3 7 4 2 2 4 . 1 1 . 4 2 6 2 6 6 3 10 . 3 11 Max Kills in Single Turn 5 | 1 1 1 . . . 2 1 2 2 2 3 3 2 1 2 . 1 1 . 2 1 1 1 1 2 1 3 . 1 5 Gunslinging 1 | . . . . . . 1 . 1 . . . . . . . . . . . . . . . . . . . . . . Exploded 3 | . . . . . . . . . . 1 1 3 . . . . . . . . . . . . 2 . 3 . 1 2 Melee 1 | . . . . . . . . . . . . . . . . . . . . 1 . 1 . . . 1 . . . . Uniques/NPCs Destroyed . | . . . . . . . . . . . . . . . . . . . . . . . . . . . . . . . Combat | -11 -10 -10 -10 -9 -8 -8 -8 -8 -7 -7 -6 -6 -5 -5 -5 -5 -4 -4 -4 -4 -4 -4 -3 -2 -2 -2 -2 -1 -1 -1 -------- Run | Yrd Mat Min Exi Min Mat Gar Mat Gar Fac Gar Fac Gar Fac Was Fac Gar Fac Was Fac Gar Fac Gar Res Res Gar Res Gar Acc Gar Acc Hostile Shots Fired 2077 | . . 13 . . . 62 . 51 55 66 153 93 3 . 36 . 4 . . 121 10 268 68 171 88 150 105 . 62 498 Missed 540 | . . 3 . . . 17 . 11 18 15 47 28 . . 7 . 1 . . 31 5 69 13 37 24 31 32 . 18 133 Hits 1537 | . . 10 . . . 45 . 40 37 51 106 65 3 . 29 . 3 . . 90 5 199 55 134 64 119 73 . 44 365 Melee 61 | . . . . . . . . 4 . . . 2 . . 1 . . . . 9 . 2 . 32 . 4 2 . . 5 Projectile 1476 | . . 10 . . . 45 . 36 37 51 106 63 3 . 28 . 3 . . 81 5 197 55 102 64 115 71 . 44 360 AOE 8 | . . . . . . . . . . . 1 4 . . . . . . . 3 . . . . . . . . . . Critical Strikes 85 | . . 1 . . . 6 . . 2 1 3 4 1 . . . . . . 4 . 12 2 9 4 12 4 . 3 17 Actively Blocked 65 | . . . . . . . . . . . . . . . . . . . . 3 . 11 2 9 4 12 4 . 3 17 Part Disruptions 3 | . . . . . . 2 . . . . . . . . . . . . . . . . . . . . . . . 1 Damage Taken 28236 | . . 80 . . . 630 . 619 715 615 1673 1216 129 . 474 . 46 26 . 1049 55 3070 975 3946 1585 3042 1822 . 524 5945 Core 2020 | . . 29 . . . 102 . 57 152 151 333 89 32 . 25 . 16 . . 38 . 119 93 204 93 133 50 . 22 282 Absorbed by Shields 4764 | . . . . . . . . . . . . . . . . . 14 8 . 321 15 628 202 527 . . 117 . 544 2388 Reduced by Siege Mode 1773 | . . . . . . . . . . . . . . . 5 . . . . 20 . 231 102 214 120 284 179 . . 618 Redirected to Shielding 78 | . . 1 . . . . . . . . . . . . . . . . . . . . . 20 36 15 . . 6 . Ignored by Resistances 510 | . . . . . . 54 . . . . . . . . 125 . . . . 77 57 . . . 3 105 . . . 89 Regen/Repaired (Parts) 708 | . . . . . . . 51 . 125 . . 201 . . . . . . . . . . . . . . . . . 331 Core Remaining (%) 78 | 100 . . . 88 . . . 71 . 56 . 50 . . . 94 . . . . . 84 92 . . . 66 . . 81 Volleys Fired 1140 | 4 5 3 . . . 37 1 41 63 62 55 70 12 15 31 10 2 10 . 47 20 87 29 56 40 111 93 . 67 169 Largest 4 | 2 2 2 . . . 4 2 4 4 4 4 4 4 1 4 2 3 2 . 4 4 4 4 4 1 4 3 . 4 4 Hottest 301 | 60 100 60 . . . 143 100 146 221 213 250 250 171 250 248 162 197 162 . 202 202 226 266 266 250 233 250 . 214 301 Shots Fired 2257 | 8 7 6 . . . 120 2 75 133 107 92 102 26 15 85 12 4 14 . 144 63 273 88 112 40 150 100 . 97 382 Gun 1628 | 8 4 6 . . . 120 2 57 71 90 51 88 23 4 69 10 3 8 . 111 44 239 69 74 2 113 45 . 58 259 Cannon 397 | . . . . . . . . 8 42 7 23 2 . 5 12 1 . . . 29 17 24 15 30 34 29 19 . 16 84 Launcher 11 | . . . . . . . . . . . . . . . . . . . . . . . . . 4 . 3 . . 4 Special 221 | . 3 . . . . . . 10 20 10 18 12 3 6 4 1 1 6 . 4 2 10 4 8 . 8 33 . 23 35 Kinetic 1088 | 4 2 3 . . . 61 . 23 55 10 24 54 14 . 35 1 1 . . 107 51 188 46 51 2 54 16 . 32 254 Thermal 674 | 4 5 3 . . . 53 . 8 42 7 23 15 9 9 46 10 2 8 . 33 10 75 38 41 31 88 6 . 19 89 Explosive 11 | . . . . . . . . . . . . . . . . . . . . . . . . . 4 . 3 . . 4 Electromagnetic 266 | . . . . . . 6 2 34 16 80 27 21 . . . . . . . . . . . 12 3 . 42 . 23 . Robot Hit Streak 56 | 5 4 8 . . . 15 1 14 23 13 15 17 11 16 24 20 3 17 . 23 9 21 21 25 7 18 32 . 12 56 Robot Miss Streak 9 | 2 . 1 . . . 3 1 3 3 4 9 6 2 2 3 . 1 . . 5 2 4 7 4 3 7 6 . 2 4 Penetration Max 2 | . . . . . . . . . 1 . . . . . 1 . . . . 2 1 1 . . . . . . . 2 Secondary Targets 19 | . . 1 . . . 3 . 1 . 1 . 2 . . 3 . . . . 2 . 3 . 2 . . . . . 1 Max Gunslinging Chain 2 | . . 1 . . . 2 . 1 . 1 . 1 . . 1 . . . . 1 . 1 . 1 . . . . . 1 Capacitor 131 | . . . . . . . . . . . . . . . . . . . . . . . . 13 34 78 6 . . . Shots Hit Robots 1582 | 6 3 5 . . . 89 1 49 87 63 56 68 15 14 60 8 3 14 . 81 44 186 58 95 25 110 69 . 72 301 Core Hits 669 | 1 1 3 . . . 31 1 21 28 25 35 36 10 5 27 2 2 5 . 28 13 53 11 30 33 48 45 . 22 153 Critical Kills 19 | . . . . . . . . . 1 . . 1 . . 1 . . . . 4 2 4 2 . . . . . . 4 Critical Parts Destroyed 36 | . . . . . . 1 . . . . . . . . 4 . . . . 1 5 9 3 . . . . . 1 12 Critical Strikes 96 | . . . . . . 3 . . 1 . 1 1 . . 10 . . . . 5 7 16 7 4 . 7 5 . 9 20 Burn 19 | . . . . . . 2 . . . . . . . . 4 . . . . . . 2 2 1 . 2 . . 5 1 Meltdown 2 | . . . . . . . . . 1 . . . . . . . . . . . . . 1 . . . . . . . Destroy 60 | . . . . . . 1 . . . . . 1 . . 6 . . . . 5 7 14 4 3 . . . . 1 18 Blast 6 | . . . . . . . . . . . . . . . . . . . . . . . . . . 1 3 . 1 1 Corrupt 5 | . . . . . . . . . . . 1 . . . . . . . . . . . . . . . 2 . 2 . Impale 4 | . . . . . . . . . . . . . . . . . . . . . . . . . . 4 . . . . Melee Attacks 7 | . . . . . . . . . . . . . . . . . . . . . . . . . . 7 . . . . Impact . | . . . . . . . . . . . . . . . . . . . . . . . . . . . . . . . Slashing . | . . . . . . . . . . . . . . . . . . . . . . . . . . . . . . . Piercing 7 | . . . . . . . . . . . . . . . . . . . . . . . . . . 7 . . . . Sneak Attacks 3 | . . . . . . . . . . . . . . . . . . . . . . . . . . 3 . . . . Combat Hostiles . | . . . . . . . . . . . . . . . . . . . . . . . . . . . . . . . Follow-up Attacks . | . . . . . . . . . . . . . . . . . . . . . . . . . . . . . . . Damage Inflicted 43486 | 71 36 68 . . . 1149 17 803 1706 1451 1501 1350 292 552 1445 196 71 193 . 1707 1152 4016 1561 2921 2140 3617 2985 . 1602 10884 Guns 28606 | 71 36 68 . . . 1149 17 623 927 959 702 1087 292 74 1292 145 71 193 . 1520 929 3826 1184 1769 62 2458 577 . 1235 7340 Cannons 9386 | . . . . . . . . 140 779 181 547 76 . 183 143 15 . . . 173 208 190 377 973 991 909 779 . 367 2355 Explosions 5036 | . . . . . . . . 40 . 311 252 187 . 295 . . . . . . . . . 100 1087 . 1604 . . 1160 Melee 250 | . . . . . . . . . . . . . . . . . . . . . . . . . . 250 . . . . Ramming 208 | . . . . . . . . . . . . . . . 10 36 . . . 14 15 . . 79 . . 25 . . 29 Kinetic 21243 | 36 14 45 . . . 495 . 263 727 122 530 778 79 . 548 15 21 . . 1329 942 2975 706 1267 62 1746 630 . 719 7194 Thermal 16932 | 35 22 23 . . . 556 . 180 779 492 799 463 213 552 887 145 50 193 . 364 195 1041 855 1304 932 1621 1154 . 416 3661 Explosive 1686 | . . . . . . . . . . . . . . . . . . . . . . . . . 1067 . 619 . . . Electromagnetic 3167 | . . . . . . 98 17 360 200 837 172 109 . . . . . . . . . . . 271 79 . 557 . 467 . Impact . | . . . . . . . . . . . . . . . . . . . . . . . . . . . . . . . Slashing . | . . . . . . . . . . . . . . . . . . . . . . . . . . . . . . . Piercing 250 | . . . . . . . . . . . . . . . . . . . . . . . . . . 250 . . . . Highest Corruption 33 | . . . . . . 1 1 7 3 5 3 3 . . . . . . . . . 12 5 . . 12 33 . 1 32 Average Corruption 7 | . . . . . . 1 1 3 1 4 3 3 . . . . . . . . . 8 3 . . 7 22 . 1 8 Corruption Purged . | . . . . . . . . . . . . . . . . . . . . . . . . . . . . . . . Corruption Blocked . | . . . . . . . . . . . . . . . . . . . . . . . . . . . . . . . Effects 276 | . . . . . . . 1 20 8 21 . 21 . . . . . . . . . 38 11 . . 18 60 . 9 69 Message Errors 74 | . . . . . . . 1 3 1 10 . 7 . . . . . . . . . 12 4 . . 4 16 . 4 12 Matter Fused 62 | . . . . . . . . 7 3 4 . . . . . . . . . . . 10 . . . 4 12 . 1 21 Heat Flow Errors 28 | . . . . . . . . 2 2 4 . 4 . . . . . . . . . 2 . . . 3 8 . . 3 Energy Discharges 35 | . . . . . . . . 4 . 2 . 5 . . . . . . . . . 5 4 . . 2 5 . 1 7 Parts Rejected 3 | . . . . . . . . . . . . . . . . . . . . . . . . . . . 1 . . 2 Parts Fused 1 | . . . . . . . . . . . . . . . . . . . . . . 1 . . . . . . . . Data Loss (minor) 26 | . . . . . . . . 2 1 1 . 2 . . . . . . . . . 2 1 . . 1 7 . . 9 Data Loss (major) 12 | . . . . . . . . . . . . 1 . . . . . . . . . 3 . . . 1 4 . . 3 Misfires 13 | . . . . . . . . 1 . . . 1 . . . . . . . . . 2 1 . . 1 1 . 1 5 Alerts 5 | . . . . . . . . . . . . 1 . . . . . . . . . . . . . . 2 . 1 1 Misdirections 4 | . . . . . . . . . . . . . . . . . . . . . . . . . . . 2 . . 2 Weapon Failures 13 | . . . . . . . . 1 1 . . . . . . . . . . . . 1 1 . . 2 2 . 1 4 Overload Shots . | . . . . . . . . . . . . . . . . . . . . . . . . . . . . . . . Overflow Damage 616 | . . . . . . . . 1 56 84 2 . . . . . . . . 12 . . 67 23 87 181 46 . . 57 Projectiles 317 | . . . . . . . . 1 56 25 2 . . . . . . . . 12 . . 67 11 21 49 39 . . 34 Explosions 155 | . . . . . . . . . . 59 . . . . . . . . . . . . . . 66 . 7 . . 23 Melee 144 | . . . . . . . . . . . . . . . . . . . . . . . . 12 . 132 . . . . Knockbacks 31 | . . . . . . . . . . . . . . . 2 1 . . . 2 4 1 . . . 3 6 . 1 11 Impact 1 | . . . . . . . . . . . . . . . 1 . . . . . . . . . . . . . . . Kinetic 28 | . . . . . . . . . . . . . . . 1 1 . . . 2 4 1 . . . 3 5 . 1 10 Secondary 2 | . . . . . . . . . . . . . . . . . . . . . . . . . . . 1 . . 1 Self-Inflicted Damage 259 | . . . . . . . . . . . . 12 . . . . . . . . . . . 83 36 . 86 . . 42 Shots 15 | . . . . . . . . . . . . 3 . . . . . . . . . . . 1 3 . 4 . . 4 Rammed 18 | . . . . . . . . . 1 . . . . . 1 5 . . . . . . . 6 . . 2 . . 3 Targets Rammed 20 | . . . . . . . . . 1 . . . . . 1 5 . . . 1 1 . . 6 . . 2 . . 3 Kicked . | . . . . . . . . . . . . . . . . . . . . . . . . . . . . . . . Crushed 2 | . . . . . . . . . . . . . . . . . . . . 1 1 . . . . . . . . . Highest Temperature 520 | . 40 . . . . 344 . 216 324 230 204 284 23 354 339 68 96 124 . 381 256 341 6 215 291 414 520 . 239 367 Average Temperature 109 | . 19 . . . . 152 . 46 106 54 53 79 23 109 141 34 63 69 . 101 91 114 4 94 112 159 106 . 72 112 Received Heat Transfer 2647 | . . . . . . 279 . 72 153 186 144 282 27 . 54 . 9 . . 11 6 171 6 309 54 99 125 . 56 604 Effects 28 | . . . . . . 5 . . 3 . . 1 . . . . . . . 5 . 2 . . 1 5 2 . . 4 Shutdowns 1 | . . . . . . . . . . . . . . . . . . . . . . . . . . . 1 . . . Energy Bleed 11 | . . . . . . 2 . . . . . 1 . . . . . . . 1 . . . . 1 3 . . . 3 Interference 12 | . . . . . . 3 . . 3 . . . . . . . . . . 3 . 2 . . . . 1 . . . Matter Decay 1 | . . . . . . . . . . . . . . . . . . . . . . . . . . . . . . 1 Short Circuit 1 | . . . . . . . . . . . . . . . . . . . . . . . . . . 1 . . . . Damage (minor) 2 | . . . . . . . . . . . . . . . . . . . . 1 . . . . . 1 . . . . Siege Activations 38 | . . . . . . . . . . . . . . . 3 . . . . 1 . 4 3 2 3 5 3 . . 14 Total Turns 864 | . . . . . . . . . . . . . . . 56 . . . . 34 . 116 59 92 34 98 53 . . 322 Longest Duration 65 | . . . . . . . . . . . . . . . 28 . . . . 34 . 62 40 65 15 40 38 . . 64 Martial Activations . | . . . . . . . . . . . . . . . . . . . . . . . . . . . . . . . Shielding Activations . | . . . . . . . . . . . . . . . . . . . . . . . . . . . . . . . Robots Disrupted . | . . . . . . . . . . . . . . . . . . . . . . . . . . . . . . . Combat Hostiles . | . . . . . . . . . . . . . . . . . . . . . . . . . . . . . . . Robots Corrupted 9 | . . . . . . 1 . . . 1 1 . . . . . . . . . . . . 1 . . 2 . 3 . Combat Hostiles 9 | . . . . . . 1 . . . 1 1 . . . . . . . . . . . . 1 . . 2 . 3 . Parts Fried 19 | . . . . . . . . . 2 1 4 . . . . . . . . . . . . 4 . . 3 . 5 . Impact Corruptions 1 | . . . . . . . . . . . . . . . . . . . . . . . . 1 . . . . . . Robots Melted 23 | . . . . . . 1 . . 1 . 2 1 . 4 . . . . . . . . 1 1 . . 2 . . 10 Combat Hostiles 20 | . . . . . . 1 . . . . 1 1 . 4 . . . . . . . . 1 1 . . 2 . . 9 Parts Melted 122 | . . . . . . . . 1 2 . 7 9 1 13 2 . . . . 1 . 2 7 4 2 5 23 . 5 38 Heat Transferred 36848 | 75 50 50 . . . 1301 . 235 925 435 2512 1603 436 2351 1628 222 65 296 . 480 259 1726 1253 1782 1097 2405 4506 . 845 10311 Parts Sabotaged 3 | . . . . . . . . . . . . . . . . . . . . . . 3 . . . . . . . . Parts Stolen . | . . . . . . . . . . . . . . . . . . . . . . . . . . . . . . . Parts Stripped . | . . . . . . . . . . . . . . . . . . . . . . . . . . . . . . . Power Chain Reactions 8 | . . . . . . . . 1 . 4 . . . . . . . . . . . . . 1 . . 2 . . . Alert | -11 -10 -10 -10 -9 -8 -8 -8 -8 -7 -7 -6 -6 -5 -5 -5 -5 -4 -4 -4 -4 -4 -4 -3 -2 -2 -2 -2 -1 -1 -1 ------- Run | Yrd Mat Min Exi Min Mat Gar Mat Gar Fac Gar Fac Gar Fac Was Fac Gar Fac Was Fac Gar Fac Gar Res Res Gar Res Gar Acc Gar Acc Maximum Alert Level 5 | . . . . . . 1 1 2 1 3 2 3 1 . 1 2 2 . . 4 2 4 2 1 2 1 3 2 4 5 Low Security (%) 29 | 100 100 100 . 100 100 56 90 12 97 27 . 4 40 100 80 39 . 100 100 15 . . . 30 . 7 3 . . . Level 1 27 | . . . . . . 43 9 83 2 31 97 40 59 . 19 43 82 . . 3 . 8 4 69 77 92 20 . 5 . Level 2 20 | . . . . . . . . 3 . 31 2 36 . . . 16 17 . . 11 100 30 95 . 22 . 31 100 45 22 Level 3 13 | . . . . . . . . . . 9 . 17 . . . . . . . 64 . 38 . . . . 45 . 33 22 Level 4 8 | . . . . . . . . . . . . . . . . . . . . 5 . 23 . . . . . . 15 54 Level 5 . | . . . . . . . . . . . . . . . . . . . . . . . . . . . . . . 1 High Security . | . . . . . . . . . . . . . . . . . . . . . . . . . . . . . . . Max Security . | . . . . . . . . . . . . . . . . . . . . . . . . . . . . . . . Peak Influence 1603 | 5 9 70 . . 3 393 205 404 212 765 401 738 387 43 275 536 433 148 . 1116 585 1151 661 317 537 328 979 587 1187 1603 Initial 712 | . 3 . . . . . 191 9 212 46 401 193 387 43 . 31 281 148 . . 585 363 647 254 209 301 183 587 365 712 Average 442 | 1 . 20 . . . 187 129 282 67 360 338 454 211 2 110 280 290 49 . 742 520 794 516 227 364 245 636 526 748 1053 Influence Increases 12262 | 5 29 70 . . 3 403 23 435 360 829 433 725 113 . 558 505 272 16 . 1176 180 978 199 421 368 466 986 . 922 1787 Destroy 0b10 Robot/C 6295 | . . 60 . . . 220 . 220 180 400 280 380 60 . 260 . 140 . . 680 100 540 120 240 240 260 445 . 465 1005 Destroy 0b10 Robot/NC 303 | 5 5 . . . . . 5 . 65 . 45 5 15 . 20 5 . . . . 15 . 5 . . 25 . . . 88 Destroy Leader 864 | . . 10 . . . 10 . 20 78 40 64 50 10 . 32 . 10 . . 50 24 50 30 40 30 62 40 . 40 174 Allied During Kill 745 | . . . . . . . . 2 1 9 3 21 12 . . . 110 . . 215 10 15 4 9 . 11 14 . 164 145 Successful Hack 354 | . 21 . . . 3 28 18 14 26 14 32 14 12 . 32 . 10 . . . . 28 24 . . 78 . . . . Disable Machine 207 | . . . . . . . . . . . . . . . 90 . . . . 15 15 . . 15 . . 24 . . 48 Anti-Garrison Action 1940 | . . . . . . 100 . 100 . 300 . 200 . . . 500 . . . 100 . 250 . . . . 201 . 189 . Destroy Structure 897 | . 3 . . . . . . 34 10 51 9 25 4 . 64 . 2 16 . 26 16 35 16 42 68 30 163 . 64 219 Lose Combat Pursuer 657 | . . . . . . 45 . 45 . 15 . 30 . . 60 . . . . 90 . 60 . 75 30 . 99 . . 108 Influence Decreases 10665 | . 34 60 10 . 3 10 402 45 698 130 922 263 727 124 513 14 385 439 . 60 777 346 898 594 110 758 252 522 192 1377 Entered New Map 4570 | . 2 . 10 . . . 202 5 192 20 364 83 351 81 . 14 255 275 . . 531 156 504 198 70 236 62 392 92 475 Time Decay 4042 | . 32 60 . . 3 . 50 . 466 . 368 . 206 30 503 . 90 144 . . 206 . 374 246 . 452 . 130 . 682 Lost Part 830 | . . . . . . 10 . 20 40 10 150 140 . . . . . . . . . 110 . 110 40 30 70 . . 100 Lost Ally 923 | . . . . . . . . 20 . 100 40 40 20 13 10 . 40 20 . 60 40 80 20 40 . 40 120 . 100 120 Purge Threat 300 | . . . . . . . 150 . . . . . 150 . . . . . . . . . . . . . . . . . Squads Dispatched 43 | . 1 . . . . . . . 4 . 3 . 1 . 4 . 1 . . . 4 . 2 5 . 4 . . . 14 Investigation 2 | . 1 . . . . . . . 1 . . . . . . . . . . . . . . . . . . . . . Extermination 19 | . . . . . . . . . 2 . 1 . . . 3 . . . . . 1 . 2 1 . 3 . . . 6 Reinforcement 12 | . . . . . . . . . 1 . 1 . 1 . 1 . . . . . 2 . . 1 . 1 . . . 4 Assault 4 | . . . . . . . . . . . . . . . . . . . . . . . . . . . . . . 4 Garrison 6 | . . . . . . . . . . . 1 . . . . . 1 . . . 1 . . 3 . . . . . . Intercept . | . . . . . . . . . . . . . . . . . . . . . . . . . . . . . . . Searches Triggered . | . . . . . . . . . . . . . . . . . . . . . . . . . . . . . . . Construction Impeded 3 | . . . . . . . . . . . 1 . . . . . . . . . . . . . . . . . . 2 Haulers Reinforced 3 | . . . . . . . . . . . . . . . . . . . . . 1 . . . . . . . . 2 Active Scanning Responses . | . . . . . . . . . . . . . . . . . . . . . . . . . . . . . . . Cargo Convoy Interrupts 1 | . . . . . . . . . . . 1 . . . . . . . . . . . . . . . . . . . Stealth | -11 -10 -10 -10 -9 -8 -8 -8 -8 -7 -7 -6 -6 -5 -5 -5 -5 -4 -4 -4 -4 -4 -4 -3 -2 -2 -2 -2 -1 -1 -1 --------- Run | Yrd Mat Min Exi Min Mat Gar Mat Gar Fac Gar Fac Gar Fac Was Fac Gar Fac Was Fac Gar Fac Gar Res Res Gar Res Gar Acc Gar Acc Distress Signals 10 | . 2 . . . . . 1 . . . . . . . . . . . . . 1 . . 1 . 1 . . . 4 Communications Jammed 110 | . . . . . . . . . . . . . . . . . . . . . . . . . . 44 . . . 66 Distress Signals 108 | . . . . . . . . . . . . . . . . . . . . . . . . . . 42 . . . 66 Times Spotted 528 | . 1 3 . . . 13 . 14 18 25 33 25 6 4 22 . 10 4 1 27 8 34 7 31 12 29 44 . 35 122 Peak Tracking Total 13 | . 1 3 . . . 3 2 4 3 4 12 5 2 2 5 . 6 1 1 6 3 7 2 7 6 7 13 1 5 12 Tactical Retreats 29 | . . . . . . 2 . 2 . 1 . 2 . . 3 . . . . 4 . 3 . 2 1 . 4 . . 5 Traps | -11 -10 -10 -10 -9 -8 -8 -8 -8 -7 -7 -6 -6 -5 -5 -5 -5 -4 -4 -4 -4 -4 -4 -3 -2 -2 -2 -2 -1 -1 -1 ------- Run | Yrd Mat Min Exi Min Mat Gar Mat Gar Fac Gar Fac Gar Fac Was Fac Gar Fac Was Fac Gar Fac Gar Res Res Gar Res Gar Acc Gar Acc Traps Triggered 27 | . . . . . . 4 . . 1 9 . 2 2 . 1 1 1 . . 2 . . . . . . . . 3 1 Indirectly . | . . . . . . . . . . . . . . . . . . . . . . . . . . . . . . . Trap Hack Attempts . | . . . . . . . . . . . . . . . . . . . . . . . . . . . . . . . Triggered . | . . . . . . . . . . . . . . . . . . . . . . . . . . . . . . . Disarmed . | . . . . . . . . . . . . . . . . . . . . . . . . . . . . . . . Reprogrammed . | . . . . . . . . . . . . . . . . . . . . . . . . . . . . . . . Reused . | . . . . . . . . . . . . . . . . . . . . . . . . . . . . . . . Traps Extracted . | . . . . . . . . . . . . . . . . . . . . . . . . . . . . . . . Installed . | . . . . . . . . . . . . . . . . . . . . . . . . . . . . . . . Triggered . | . . . . . . . . . . . . . . . . . . . . . . . . . . . . . . . Most Traps Carried 1 | . . . . . . . . . . . . . . . . . . . . . . . . . . . 1 . . . Machines | -11 -10 -10 -10 -9 -8 -8 -8 -8 -7 -7 -6 -6 -5 -5 -5 -5 -4 -4 -4 -4 -4 -4 -3 -2 -2 -2 -2 -1 -1 -1 ---------- Run | Yrd Mat Min Exi Min Mat Gar Mat Gar Fac Gar Fac Gar Fac Was Fac Gar Fac Was Fac Gar Fac Gar Res Res Gar Res Gar Acc Gar Acc Machines Disabled 40 | . . . . . . 2 . 2 . 3 . 2 . . 6 4 . . . 4 1 3 . 1 . . 5 . 3 4 Max in Single Turn 4 | . . . . . . 1 . 1 . 1 . 1 . . 4 1 . . . 1 1 1 . 1 . . 1 . 1 1 Garrison Access 1 | . . . . . . . . . . . . . . . . . . . . . . . 1 . . . . . . . Garrison Relay 25 | . . . . . . 2 . 2 . 4 . 2 . . . 4 . . . 2 . 3 . . . . 3 . 3 . Machines Repaired . | . . . . . . . . . . . . . . . . . . . . . . . . . . . . . . . Machines Dismantled . | . . . . . . . . . . . . . . . . . . . . . . . . . . . . . . . Machines Sabotaged . | . . . . . . . . . . . . . . . . . . . . . . . . . . . . . . . Overloaded Fab Kills . | . . . . . . . . . . . . . . . . . . . . . . . . . . . . . . . Hacking | -11 -10 -10 -10 -9 -8 -8 -8 -8 -7 -7 -6 -6 -5 -5 -5 -5 -4 -4 -4 -4 -4 -4 -3 -2 -2 -2 -2 -1 -1 -1 --------- Run | Yrd Mat Min Exi Min Mat Gar Mat Gar Fac Gar Fac Gar Fac Was Fac Gar Fac Was Fac Gar Fac Gar Res Res Gar Res Gar Acc Gar Acc Machines Accessed 80 | . 5 1 3 . 3 2 3 2 8 2 8 2 1 . 9 3 2 . 1 1 4 3 4 4 . 6 . 3 . . Terminals 46 | . 5 1 . . 2 2 1 2 4 2 4 2 . . 4 3 1 . . 1 1 3 2 2 . 4 . . . . Fabricators 4 | . . . . . . . . . 1 . . . . . 1 . . . . . 1 . . . . . . 1 . . Repair Stations 5 | . . . . . . . 1 . 1 . . . 1 . . . . . . . . . . . . 1 . 1 . . Recycling Units 9 | . . . . . . . . . 1 . 3 . . . 2 . . . . . 1 . 1 1 . . . . . . Scanalyzers 2 | . . . . . . . . . . . . . . . 1 . 1 . . . . . . . . . . . . . Garrison Access 11 | . . . . . 1 . 1 . 1 . 1 . . . 1 . . . 1 . 1 . 1 1 . 1 . 1 . . Total Hacks 175 | . 18 4 3 . 10 5 6 5 18 5 15 2 2 . 20 5 4 . 2 1 7 12 9 6 . 11 . 5 . . Successful 81 | . 6 1 3 . 5 2 6 1 7 1 10 1 1 . 11 1 2 . 2 . 4 3 3 3 . 5 . 3 . . Failed 94 | . 12 3 . . 5 3 . 4 11 4 5 1 1 . 9 4 2 . . 1 3 9 6 3 . 6 . 2 . . Catastrophic 19 | . . 2 . . . . . 1 1 . . 1 1 . 2 2 . . . 1 1 1 2 2 . 2 . . . . Database Lockouts . | . . . . . . . . . . . . . . . . . . . . . . . . . . . . . . . Manual 60 | . 10 4 1 . 7 2 . 3 4 . 5 . . . 5 . 2 . . . 1 5 4 . . 6 . 1 . . Terminals 116 | . 18 4 . . 8 5 2 5 8 5 9 2 . . 10 5 2 . . 1 3 12 6 3 . 8 . . . . Fabricators 8 | . . . . . . . . . 3 . . . . . 2 . . . . . 1 . . . . . . 2 . . Repair Stations 10 | . . . . . . . 2 . 4 . . . 2 . . . . . . . . . . . . 1 . 1 . . Recycling Units 12 | . . . . . . . . . 1 . 4 . . . 4 . . . . . 1 . 1 1 . . . . . . Scanalyzers 4 | . . . . . . . . . . . . . . . 2 . 2 . . . . . . . . . . . . . Garrison Access 22 | . . . . . 2 . 2 . 2 . 2 . . . 2 . . . 2 . 2 . 2 2 . 2 . 2 . . Terminal Hacks 29 | . 4 1 3 . 2 2 2 1 1 1 3 1 . . 2 1 . . . . 1 2 1 . . 1 . . . . Record 2 | . . . 2 . . . . . . . . . . . . . . . . . . . . . . . . . . . Robot Analysis 5 | . 1 1 . . 2 . . . 1 . . . . . . . . . . . . . . . . . . . . . Prototype ID Bank 2 | . 1 . . . . . . . . . . . . . . . . . . . . . 1 . . . . . . . Open Door 1 | . . . . . . . . . . . . . . . . 1 . . . . . . . . . . . . . . Open DSF 1 | . . . . . . . . . . . 1 . . . . . . . . . . . . . . . . . . . Branch Access Points 1 | . . . . . . . . . . . . . . . 1 . . . . . . . . . . . . . . . Emergency Access Points 3 | . . . . . . 1 . . . 1 . . . . . . . . . . . 1 . . . . . . . . Unreport Threat 1 | . . . . . . . 1 . . . . . . . . . . . . . . . . . . . . . . . Locate Traps 6 | . 1 . . . . . 1 . . . 2 . . . . . . . . . 1 . . . . 1 . . . . Recall Extermination 1 | . . . . . . . . . . . . . . . 1 . . . . . . . . . . . . . . . Registered Components 1 | . 1 . . . . . . . . . . . . . . . . . . . . . . . . . . . . . Garrison Registry 1 | . . . . . . . . 1 . . . . . . . . . . . . . . . . . . . . . . Patrol Navigation 3 | . . . . . . 1 . . . . . 1 . . . . . . . . . 1 . . . . . . . . Proto ID Catalog 1 | . . . 1 . . . . . . . . . . . . . . . . . . . . . . . . . . . Fabricator Hacks 2 | . . . . . . . . . 1 . . . . . . . . . . . . . . . . . . 1 . . Network Status 2 | . . . . . . . . . 1 . . . . . . . . . . . . . . . . . . 1 . . Repair Station Hacks 5 | . . . . . . . 2 . 1 . . . 1 . . . . . . . . . . . . 1 . . . . Scan Component 3 | . . . . . . . 1 . 1 . . . 1 . . . . . . . . . . . . . . . . . Repair 1 | . . . . . . . 1 . . . . . . . . . . . . . . . . . . . . . . . Refit 1 | . . . . . . . . . . . . . . . . . . . . . . . . . . 1 . . . . Recycling Unit Hacks 6 | . . . . . . . . . . . 2 . . . 3 . . . . . . . . 1 . . . . . . Retrieve Matter 1 | . . . . . . . . . . . . . . . 1 . . . . . . . . . . . . . . . Retrieve Components 5 | . . . . . . . . . . . 2 . . . 2 . . . . . . . . 1 . . . . . . Scanalyzer 2 | . . . . . . . . . . . . . . . 1 . 1 . . . . . . . . . . . . . Retrieve Study 2 | . . . . . . . . . . . . . . . 1 . 1 . . . . . . . . . . . . . Garrison Access Hacks 21 | . . . . . 1 . 2 . 2 . 2 . . . 2 . . . 2 . 2 . 2 2 . 2 . 2 . . Unlock Access 10 | . . . . . 1 . 1 . 1 . 1 . . . 1 . . . 1 . 1 . . 1 . 1 . 1 . . Seal Access 1 | . . . . . . . . . . . . . . . . . . . . . . . 1 . . . . . . . Coupler Status 10 | . . . . . . . 1 . 1 . 1 . . . 1 . . . 1 . 1 . 1 1 . 1 . 1 . . Unauthorized Hacks 16 | . 2 . . . 2 . . . 2 . 3 . . . 3 . 1 . . . 1 1 . . . 1 . . . . Terminals 13 | . 2 . . . 2 . . . . . 2 . . . 3 . 1 . . . 1 1 . . . 1 . . . . Botnet 12 | . 2 . . . 2 . . . . . 2 . . . 2 . 1 . . . 1 1 . . . 1 . . . . Operators 1 | . . . . . . . . . . . . . . . 1 . . . . . . . . . . . . . . . Fabricators 2 | . . . . . . . . . 2 . . . . . . . . . . . . . . . . . . . . . Report 1 | . . . . . . . . . 1 . . . . . . . . . . . . . . . . . . . . . Haulers 1 | . . . . . . . . . 1 . . . . . . . . . . . . . . . . . . . . . Repair Stations . | . . . . . . . . . . . . . . . . . . . . . . . . . . . . . . . Recycling Units 1 | . . . . . . . . . . . 1 . . . . . . . . . . . . . . . . . . . Monitor 1 | . . . . . . . . . . . 1 . . . . . . . . . . . . . . . . . . . Scanalyzers . | . . . . . . . . . . . . . . . . . . . . . . . . . . . . . . . Garrison Access . | . . . . . . . . . . . . . . . . . . . . . . . . . . . . . . . Data Cores Recovered . | . . . . . . . . . . . . . . . . . . . . . . . . . . . . . . . Used . | . . . . . . . . . . . . . . . . . . . . . . . . . . . . . . . Hacking Detections 68 | . 5 1 . . 3 2 2 2 8 2 6 1 1 . 8 2 2 . 1 1 4 3 4 3 . 4 . 3 . . Full Trace Events 5 | . 2 1 . . . . . . 1 1 . . . . . . . . . . . . . . . . . . . . Feedback Events . | . . . . . . . . . . . . . . . . . . . . . . . . . . . . . . . Feedback Blocked . | . . . . . . . . . . . . . . . . . . . . . . . . . . . . . . . Robot Schematics Acquired . | . . . . . . . . . . . . . . . . . . . . . . . . . . . . . . . Robots Built . | . . . . . . . . . . . . . . . . . . . . . . . . . . . . . . . Authchips . | . . . . . . . . . . . . . . . . . . . . . . . . . . . . . . . Time . | . . . . . . . . . . . . . . . . . . . . . . . . . . . . . . . Total Robot Build Rating . | . . . . . . . . . . . . . . . . . . . . . . . . . . . . . . . Part Schematics Acquired . | . . . . . . . . . . . . . . . . . . . . . . . . . . . . . . . Parts Built . | . . . . . . . . . . . . . . . . . . . . . . . . . . . . . . . Authchips . | . . . . . . . . . . . . . . . . . . . . . . . . . . . . . . . Time . | . . . . . . . . . . . . . . . . . . . . . . . . . . . . . . . Total Part Build Rating . | . . . . . . . . . . . . . . . . . . . . . . . . . . . . . . . Part Studies Acquired 2 | . . . . . . . . . . . . . . . 1 . 1 . . . . . . . . . . . . . Parts Repaired 1 | . . . . . . . 1 . . . . . . . . . . . . . . . . . . . . . . . Time 19 | . . . . . . . 19 . . . . . . . . . . . . . . . . . . . . . . . Parts Recycled . | . . . . . . . . . . . . . . . . . . . . . . . . . . . . . . . Recycled Matter . | . . . . . . . . . . . . . . . . . . . . . . . . . . . . . . . Retrieved Matter . | . . . . . . . . . . . . . . . . . . . . . . . . . . . . . . . Retrieved Components 21 | . . . . . . . . . . . 6 . . . 12 . . . . . . . . 3 . . . . . . Parts Scanalyzed . | . . . . . . . . . . . . . . . . . . . . . . . . . . . . . . . Part Schematics Acquired . | . . . . . . . . . . . . . . . . . . . . . . . . . . . . . . . Parts Damaged . | . . . . . . . . . . . . . . . . . . . . . . . . . . . . . . . Bothacking | -11 -10 -10 -10 -9 -8 -8 -8 -8 -7 -7 -6 -6 -5 -5 -5 -5 -4 -4 -4 -4 -4 -4 -3 -2 -2 -2 -2 -1 -1 -1 ------------ Run | Yrd Mat Min Exi Min Mat Gar Mat Gar Fac Gar Fac Gar Fac Was Fac Gar Fac Was Fac Gar Fac Gar Res Res Gar Res Gar Acc Gar Acc Used RIF Installer 10 | . . . . . . 1 . 2 . 1 . 1 . . . 1 . . . 1 . 1 . . . . 1 . 1 . Coupler Efficiency 1 | . . . . . . . . . . . . . . . . . . . . . . . . . . . . . 1 . Code Merge 1 | . . . . . . . . . . . . . . . . . . . . 1 . . . . . . . . . . Threat Obfuscator 1 | . . . . . . . . . . . . . . . . . . . . . . . . . . . 1 . . . Zone Cloak 1 | . . . . . . . . 1 . . . . . . . . . . . . . . . . . . . . . . Robot Detection 1 | . . . . . . . . . . . . . . . . 1 . . . . . . . . . . . . . . Watcher Feeds 1 | . . . . . . . . . . 1 . . . . . . . . . . . . . . . . . . . . Patrol Navigation 1 | . . . . . . . . 1 . . . . . . . . . . . . . . . . . . . . . . Structural Interface 1 | . . . . . . . . . . . . 1 . . . . . . . . . . . . . . . . . . Program Shield 1 | . . . . . . . . . . . . . . . . . . . . . . 1 . . . . . . . . Robots Hacked 150 | . . . . . . . . 4 13 7 9 8 2 6 3 1 1 6 . 3 2 9 3 5 . 6 18 . 17 27 Non-combat 26 | . . . . . . . . . 9 . 2 1 1 . 3 . . . . . . . 1 1 . . . . . 8 Combat 124 | . . . . . . . . 4 4 7 7 7 1 6 . 1 1 6 . 3 2 9 2 4 . 6 18 . 17 19 Robot Hacks Applied 172 | . . . . . . . . 4 15 8 13 8 3 6 3 1 1 6 . 3 2 9 3 7 . 7 24 . 20 29 parse_system 5 | . . . . . . . . . . . 1 . . . . 1 . . . . . . . . . . 1 . . 2 no_distress 1 | . . . . . . . . . . . . . . . . . . . . . . . 1 . . . . . . . hold_bot 4 | . . . . . . . . . 3 . 1 . . . . . . . . . . . . . . . . . . . map_walls 3 | . . . . . . . . . 2 . . . . . . . . . . . . . . . . . . . . 1 randomize_corridors 2 | . . . . . . . . . . . . . . . . . . . . . . . . . . . . . . 2 find_fabricator 1 | . . . . . . . . . . . . . . . . . . . . . . . . 1 . . . . . . drop_inventory 1 | . . . . . . . . . . . . . . . . . . . . . . . . 1 . . . . . . locate_stockpiles 1 | . . . . . . . . . . . . . . . . . . . . . . . . 1 . . . . . . find_recycling 1 | . . . . . . . . . . . . . . . 1 . . . . . . . . . . . . . . . find_station 2 | . . . . . . . . . 1 . . . . . 1 . . . . . . . . . . . . . . . purge_threat 1 | . . . . . . . . . . . . . 1 . . . . . . . . . . . . . . . . . disarm_traps 1 | . . . . . . . . . . . . . 1 . . . . . . . . . . . . . . . . . map_route 3 | . . . . . . . . . . . 1 . . . . . . . . . . . . . . . . . . 2 mark_security 1 | . . . . . . . . . . . 1 . . . . . . . . . . . . . . . . . . . ignore_targets 12 | . . . . . . . . . . . . . . 6 . . . 6 . . . . . . . . . . . . find_garrison 1 | . . . . . . . . . . . 1 . . . . . . . . . . . . . . . . . . . link_fov 2 | . . . . . . . . . 2 . . . . . . . . . . . . . . . . . . . . . reboot_propulsion 1 | . . . . . . . . . . . . . . . . . . . . . . . . . . . 1 . . . scatter_targeting 1 | . . . . . . . . . . . . . . . . . . . . . . . . . . . . . . 1 disrupt_area 1 | . . . . . . . . . . . . . . . . . . . . . . . . . . . . . . 1 spike_heat 2 | . . . . . . . . . . . . 2 . . . . . . . . . . . . . . . . . . overload_power 1 | . . . . . . . . . . . . . . . . . . . . . . . . . . . . . . 1 amplify_resonance 17 | . . . . . . . . . 2 . 2 . . . . . . . . . . . . . . 1 2 . 5 5 wipe_record 33 | . . . . . . . . 1 3 3 4 . . . . . . . . . 1 3 . . . 3 7 . 6 2 disable_weapons 2 | . . . . . . . . . . 1 . . . . . . . . . 1 . . . . . . . . . . reboot_system 7 | . . . . . . . . . . . . . . . . . . . . . 1 . . . . . . . 4 2 overwrite_iff 37 | . . . . . . . . 2 1 3 2 2 1 . . . . . . . . 3 . 2 . 2 12 . 4 3 streamctrl_low 1 | . . . . . . . . . . . . 1 . . . . . . . . . . . . . . . . . . streamctrl_high 7 | . . . . . . . . . . 1 . . . . . . . . . . . 3 2 1 . . . . . . formatsys_low 4 | . . . . . . . . . 1 . . . . . . . . . . . . . . . . . . . . 3 formatsys_high 16 | . . . . . . . . 1 . . . 3 . . 1 . 1 . . 2 . . . 1 . 1 1 . 1 4 Relay Couplers Released 105 | . . . . . . 9 . 9 . 13 . 8 . . . 17 . . . 8 . 15 1 . . . 12 . 13 . Machine Destruction 105 | . . . . . . 9 . 9 . 13 . 8 . . . 17 . . . 8 . 15 1 . . . 12 . 13 . Attached 44 | . . . . . . . . 3 3 2 3 4 1 1 . 1 1 . . 3 1 5 . . . 1 6 . 6 3 Merged Code Value 148 | . . . . . . . . . . . . . . . . . . . . . 11 73 5 . . . 11 . 48 . Fabnet Peak Effective % . | . . . . . . . . . . . . . . . . . . . . . . . . . . . . . . . Robots Rewired 15 | . . . . . . . . . . 4 . . 1 . . 7 . . . . . . . . . . . . 3 . Allies Hacked . | . . . . . . . . . . . . . . . . . . . . . . . . . . . . . . . Hacks Repelled . | . . . . . . . . . . . . . . . . . . . . . . . . . . . . . . . Allies | -11 -10 -10 -10 -9 -8 -8 -8 -8 -7 -7 -6 -6 -5 -5 -5 -5 -4 -4 -4 -4 -4 -4 -3 -2 -2 -2 -2 -1 -1 -1 -------- Run | Yrd Mat Min Exi Min Mat Gar Mat Gar Fac Gar Fac Gar Fac Was Fac Gar Fac Was Fac Gar Fac Gar Res Res Gar Res Gar Acc Gar Acc Total Allies 78 | . . . . . . . . 3 2 9 2 6 2 . 1 7 1 . . 2 . 6 2 4 . 2 12 . 8 9 Largest Group 7 | . . . . . . . . 1 2 4 1 3 3 1 1 7 7 4 3 3 2 2 1 2 . 1 2 1 4 2 Highest-Rated Group 416 | . . . . . . . . 29 44 96 85 93 119 29 26 326 326 227 189 189 98 98 64 122 . 183 94 64 416 288 Highest-Rated Ally 219 | . . . . . . . . 29 29 32 85 41 49 29 26 119 119 119 119 119 49 49 64 64 . 183 64 64 219 219 Total Orders 27 | . . . . . . . . 4 3 3 . 3 . . . 5 5 . . . . . 1 . . . . . 1 2 STAY 8 | . . . . . . . . 2 . 1 . . . . . 3 1 . . . . . . . . . . . 1 . FOLLOW 6 | . . . . . . . . 1 1 . . . . . . 2 2 . . . . . . . . . . . . . GUARD 7 | . . . . . . . . 1 1 2 . . . . . . 2 . . . . . 1 . . . . . . . AID 6 | . . . . . . . . . 1 . . 3 . . . . . . . . . . . . . . . . . 2 Ally Attacks 396 | . . . . . . . . 4 5 24 6 21 18 7 . . 18 29 . 35 12 17 5 13 . 16 40 . 70 56 Total Damage 15498 | . . . . . . . . 70 80 505 112 526 536 117 . . 596 1786 . 1513 435 495 170 489 . 412 796 . 3014 3846 Kills 92 | . . . . . . . . 1 1 2 2 6 2 . . . 6 5 . 16 2 3 1 1 . 1 5 . 15 23 Allies Corrupted 3 | . . . . . . . . . . . . . . . . . . . . . . . . . . . . . 1 2 Allies Melted 1 | . . . . . . . . . . . . . . . . . . . . . . . . . . . . . 1 . Intel | -11 -10 -10 -10 -9 -8 -8 -8 -8 -7 -7 -6 -6 -5 -5 -5 -5 -4 -4 -4 -4 -4 -4 -3 -2 -2 -2 -2 -1 -1 -1 ------- Run | Yrd Mat Min Exi Min Mat Gar Mat Gar Fac Gar Fac Gar Fac Was Fac Gar Fac Was Fac Gar Fac Gar Res Res Gar Res Gar Acc Gar Acc Active Infowar (turns) 6400 | 9 399 104 . 101 97 . . . 416 . 229 . . . . . . . . . . . . . 278 832 547 260 1283 1845 Optics 38 | . . . . . . . . . 38 . . . . . . . . . . . . . . . . . . . . . Sensors 378 | . . . . . . . . . 378 . . . . . . . . . . . . . . . . . . . . . Terrain 223 | . . . . . . . . . . . 223 . . . . . . . . . . . . . . . . . . . Seismic 710 | 9 399 104 . 101 97 . . . . . . . . . . . . . . . . . . . . . . . . . Triangulation 6 | . . . . . . . . . . . 6 . . . . . . . . . . . . . . . . . . . Jamming 5045 | . . . . . . . . . . . . . . . . . . . . . . . . . 278 832 547 260 1283 1845 Robot Analysis Total 5 | . 1 1 . . 2 . . . 1 . . . . . . . . . . . . . . . . . . . . . Derelict Logs Recovered 1 | . . . . 1 . . . . . . . . . . . . . . . . . . . . . . . . . . Drone Launches . | . . . . . . . . . . . . . . . . . . . . . . . . . . . . . . . Drone Recoveries . | . . . . . . . . . . . . . . . . . . . . . . . . . . . . . . . Exploration | -11 -10 -10 -10 -9 -8 -8 -8 -8 -7 -7 -6 -6 -5 -5 -5 -5 -4 -4 -4 -4 -4 -4 -3 -2 -2 -2 -2 -1 -1 -1 ------------- Run | Yrd Mat Min Exi Min Mat Gar Mat Gar Fac Gar Fac Gar Fac Was Fac Gar Fac Was Fac Gar Fac Gar Res Res Gar Res Gar Acc Gar Acc Turns Passed 25305 | 77 399 230 557 114 246 915 107 1156 1563 1321 854 1455 437 665 1641 1030 195 472 42 1155 436 1687 870 536 357 1134 1400 260 1283 2711 Spaces Moved 11850 | 51 318 185 446 98 190 469 57 330 720 596 437 725 229 366 860 562 113 170 23 584 205 762 355 201 181 499 618 152 493 855 Core 18 | 9 . . . . . . . . . . 9 . . . . . . . . . . . . . . . . . . . Treads 7086 | 1 . . . . . 12 . . . . . . 74 366 860 562 113 170 23 584 205 762 355 201 181 499 618 152 493 855 Legs 633 | . . . . . . . . . . . 2 631 . . . . . . . . . . . . . . . . . . Wheels 4113 | 41 318 185 446 98 190 457 57 330 720 596 426 94 155 . . . . . . . . . . . . . . . . . Hover . | . . . . . . . . . . . . . . . . . . . . . . . . . . . . . . . Flight . | . . . . . . . . . . . . . . . . . . . . . . . . . . . . . . . Fastest Speed 50 | 50 100 115 115 115 115 120 135 135 115 115 95 110 145 160 160 160 160 160 160 160 160 160 160 153 145 153 166 166 166 166 Average Speed 157 | 94 109 115 115 115 121 127 135 140 145 151 134 160 153 162 160 160 160 160 160 160 160 160 164 156 147 162 166 166 203 226 Slowest Speed 500 | 160 115 115 115 115 135 240 135 165 165 155 500 190 330 170 160 160 160 160 160 160 160 200 165 158 157 166 166 166 249 250 Overloaded Moves . | . . . . . . . . . . . . . . . . . . . . . . . . . . . . . . . Propulsion Burnouts . | . . . . . . . . . . . . . . . . . . . . . . . . . . . . . . . Robots Hopped . | . . . . . . . . . . . . . . . . . . . . . . . . . . . . . . . Potential Cave-ins . | . . . . . . . . . . . . . . . . . . . . . . . . . . . . . . . Cave-ins Triggered . | . . . . . . . . . . . . . . . . . . . . . . . . . . . . . . . Exploration Rate (%) 39 | 4 60 52 88 27 11 54 8 32 23 75 15 72 9 87 27 82 4 82 2 83 12 75 12 9 22 13 79 6 56 34 Regions Visited 30 Branch Regions 3 Pre-discovered Areas 1 | . . . 1 . . . . . . . . . . . . . . . . . . . . . . . . . . . Known Exits Taken 10 | . . . . . 1 . 1 . 1 . 1 . . . 1 . . . 1 . 1 . . 1 . 1 . 1 . . Unknown Exits Taken 6 | 1 1 1 1 1 . . . . . . . . . . . . . . . . . . 1 . . . . . . . Scrap Searched 1 | . . 1 . . . . . . . . . . . . . . . . . . . . . . . . . . . . Spaces Dug 6 | . 3 . . . . . . . 2 . . . . . . . . . . . . . . . . . . . . 1 Terrain Destroyed 309 | . 3 . . . . . . 4 10 6 5 . 3 . 31 . 1 . . 9 7 14 14 25 36 8 89 . 8 36 Melee . | . . . . . . . . . . . . . . . . . . . . . . . . . . . . . . . Projectile 121 | . 3 . . . . . . . 10 . 5 . 3 . 6 . 1 . . 7 7 14 14 2 7 8 2 . 8 24 AOE 185 | . . . . . . . . 4 . 6 . . . . 25 . . . . . . . . 23 29 . 87 . . 11 Terrain Rammed . | . . . . . . . . . . . . . . . . . . . . . . . . . . . . . . . Walls Destroyed . | . . . . . . . . . . . . . . . . . . . . . . . . . . . . . . . Machines Disabled . | . . . . . . . . . . . . . . . . . . . . . . . . . . . . . . . Actions | -11 -10 -10 -10 -9 -8 -8 -8 -8 -7 -7 -6 -6 -5 -5 -5 -5 -4 -4 -4 -4 -4 -4 -3 -2 -2 -2 -2 -1 -1 -1 --------- Run | Yrd Mat Min Exi Min Mat Gar Mat Gar Fac Gar Fac Gar Fac Was Fac Gar Fac Was Fac Gar Fac Gar Res Res Gar Res Gar Acc Gar Acc Total 17013 | 68 355 194 492 98 203 711 85 965 1124 917 631 943 298 430 1072 689 125 364 29 712 271 1046 595 369 269 768 934 160 721 1375 Wait 2532 | . 24 2 40 . . 144 17 565 289 102 54 56 10 7 146 11 5 169 . 46 37 131 145 63 29 58 136 . 35 211 Move 11825 | 50 317 184 445 97 189 468 57 329 720 594 437 724 229 365 859 560 113 169 23 583 205 761 354 201 180 498 616 152 492 854 Hop . | . . . . . . . . . . . . . . . . . . . . . . . . . . . . . . . Pick Up 211 | 7 4 1 3 . 2 9 1 6 4 8 7 14 5 7 8 10 1 4 1 8 1 14 11 7 3 16 19 4 16 10 Fast Attach 175 | 7 . . . . 4 3 3 5 9 4 23 17 6 8 4 1 . 3 1 . . 15 11 5 2 17 12 1 5 9 Attach 138 | . . . . . 2 2 . 2 2 1 12 13 3 5 . . 2 . . 2 1 12 3 12 9 14 19 1 3 18 Detach 64 | . . . . . . 1 . . 2 . 6 8 . 1 . . . . . . . 3 3 7 5 7 11 . 1 9 Swap 299 | . 3 4 . 1 3 5 2 4 19 12 17 14 7 3 12 3 2 2 1 15 4 12 13 5 . 14 8 . 37 77 Drop 300 | . 2 . 4 . 3 13 4 10 7 12 19 16 12 19 10 12 . 7 3 8 2 11 26 8 1 26 16 2 32 15 Fire 1140 | 4 5 3 . . . 37 1 41 63 62 55 70 12 15 31 10 2 10 . 47 20 87 29 56 40 111 93 . 67 169 Melee 7 | . . . . . . . . . . . . . . . . . . . . . . . . . . 7 . . . . Ram 1 | . . . . . . . . . 1 . . . . . . . . . . . . . . . . . . . . . Kick . | . . . . . . . . . . . . . . . . . . . . . . . . . . . . . . . Crush 18 | . . . . . . . . . . . . . . . 1 5 . . . 1 1 . . 5 . . 2 . . 3 Escape Stasis 124 | . . . . . . 29 . . 8 72 . 10 . . . . . . . . . . . . . . 1 . 4 . Rewire 179 | . . . . . . . . 3 . 50 1 1 14 . 1 77 . . . 2 . . . . . . 1 . 29 . Trap . | . . . . . . . . . . . . . . . . . . . . . . . . . . . . . . . Miscellaneous . | . . . . . . . . . . . . . . . . . . . . . . . . . . . . . . . Route ------- -11/Scrapyard -10/Materials (discovered 2 exits: [*Mat] / *Min) -10/Mines (discovered 2 exits: [*Mat] / *Exi) -10/Exiles -9/Mines -8/Materials (discovered 2 exits: Sto / Gar) -8/Garrison -8/Materials -8/Garrison (discovered 3 exits: *Fac x3) -7/Factory -7/Garrison (discovered 2 exits: *Fac x2) -6/Factory (discovered 2 exits: [*Low] / Gar) -6/Garrison (discovered 3 exits: *Fac x3) -5/Factory -5/Waste -5/Factory (discovered 5 exits: *Fac x2 / Upp x2 / Gar) -5/Garrison (discovered 3 exits: *Fac x3) -4/Factory -4/Waste -4/Factory -4/Garrison (discovered 3 exits: *Fac x3) -4/Factory -4/Garrison (discovered 2 exits: *Res x2) -3/Research -2/Research -2/Garrison -2/Research -2/Garrison (discovered 2 exits: *Acc x2) -1/Access -1/Garrison -1/Access To Epsilon Eridani History --------- Turn | Location | Event 15 | -11/Scrapyard | Discovered new exit (range 15) 78 | -11/Scrapyard | Entered Materials 79 | -10/Materials | Met a group of wandering Federalists 176 | -10/Materials | Discovered new exit (range 6) 217 | -10/Materials | Discovered new exit (range 15) 305 | -10/Materials | Build established: Mutant 477 | -10/Materials | Entered Mines 534 | -10/Mines | Discovered new exit (range 8) 680 | -10/Mines | Assembled infested the area 685 | -10/Mines | Assisted by a Guerilla fighting off Assembled 702 | -10/Mines | Deemed a non-threat by the Exiles lab entrance 702 | -10/Mines | Discovered new exit (range 5) 707 | -10/Mines | Entered Exiles 735 | -10/Exiles | Met 8R-AWN 752 | -10/Exiles | Met EX-HEX 799 | -10/Exiles | Met EX-DEC 806 | -10/Exiles | Learned location of Zion (-7) 894 | -10/Exiles | Visited The Gauntlet 1038 | -10/Exiles | Met EX-BIN 1054 | -10/Exiles | Aligned with FarCom system 1055 | -10/Exiles | Given EX-Vault access code 1081 | -10/Exiles | Opened EX-Vault 1089 | -10/Exiles | Found XL Autogun Array 1093 | -10/Exiles | Found Firepult 1100 | -10/Exiles | Found Superbattery 1122 | -10/Exiles | Warned to stay clear of 0b10 Research branches 1208 | -10/Exiles | Discovered new exit (range 14) 1264 | -10/Exiles | Stole three prototypes: Superbattery, Firepult, XL Autogun Array 1264 | -10/Exiles | Entered Mines 1357 | -9/Mines | Found a hidden stash of uninstalled traps 1360 | -9/Mines | Discovered new exit (range 15) 1378 | -9/Mines | Entered Materials 1378 | -8/Materials | Evolved 4 slots: Propulsion x1, Utility x1, Weapon x2 1379 | -8/Materials | Identified exit to Storage 1424 | -8/Materials | Identified exit to Garrison 1624 | -8/Materials | Entered Garrison 1752 | -8/Garrison | Triggered checkpoint 1768 | -8/Garrison | Garrison Relay disabled 1798 | -8/Garrison | Build established: Skirmisher 1940 | -8/Garrison | Triggered checkpoint 2196 | -8/Garrison | Triggered checkpoint 2266 | -8/Garrison | Triggered checkpoint 2290 | -8/Garrison | Garrison Relay disabled 2413 | -8/Garrison | Installed Relay Interface Framework 2498 | -8/Garrison | Discovered new exit (range 15) 2539 | -8/Garrison | Entered Materials 2568 | -8/Materials | Repaired Shock Rifle 2646 | -8/Materials | Identified exit to Garrison 2646 | -8/Materials | Entered Garrison 2702 | -8/Garrison | Triggered checkpoint 2726 | -8/Garrison | Garrison Relay disabled 2751 | -8/Garrison | Build established: Bothacker-Skirmisher 2759 | -8/Garrison | Discovered new exit (range 77) 2759 | -8/Garrison | Discovered new exit (range 77) 2759 | -8/Garrison | Discovered new exit (range 49) 2964 | -8/Garrison | Triggered checkpoint 3409 | -8/Garrison | Garrison Relay disabled 3665 | -8/Garrison | Expanded RIF knowledge: Patrol Navigation 3775 | -8/Garrison | Expanded RIF knowledge: Zone Cloak 3802 | -8/Garrison | Entered Factory 3802 | -7/Factory | Accompanied by 1 ally 3802 | -7/Factory | Evolved 2 slots: Utility x2 3804 | -7/Factory | FarCom data flow suspended 4110 | -7/Factory | Build established: Bothacker-Gunner 5365 | -7/Factory | Identified exit to Garrison 5365 | -7/Factory | Entered Garrison 5377 | -7/Garrison | Triggered checkpoint 5437 | -7/Garrison | Triggered checkpoint 5651 | -7/Garrison | Triggered checkpoint 5712 | -7/Garrison | Lost 4 allies 5857 | -7/Garrison | Expanded RIF knowledge: Watcher Feeds 5905 | -7/Garrison | Garrison Relay disabled 6005 | -7/Garrison | Triggered checkpoint 6146 | -7/Garrison | Garrison Relay disabled 6274 | -7/Garrison | Discovered new exit (range 9) 6467 | -7/Garrison | Garrison Relay disabled 6504 | -7/Garrison | Discovered new exit (range 15) 6622 | -7/Garrison | Rescued a captive Derelict 6643 | -7/Garrison | Triggered checkpoint 6686 | -7/Garrison | Entered Factory 6686 | -6/Factory | Accompanied by 1 ally 6686 | -6/Factory | Evolved 2 slots: Utility x2 6704 | -6/Factory | Identified exit to DSF 6840 | -6/Factory | Discovered new exit (range 14) 7313 | -6/Factory | Spotted B-75 Beast 7381 | -6/Factory | Garrison activated, responded to threat 7381 | -6/Factory | Destroyed B-75 Beast 7436 | -6/Factory | Destroyed 7 combat bots 7436 | -6/Factory | Lost 13 parts (1p3n4u5w) 7538 | -6/Factory | Cargo convoy interrupted 7540 | -6/Factory | Identified exit to Garrison 7540 | -6/Factory | Entered Garrison 7590 | -6/Garrison | Spotted B-75 Beast 7616 | -6/Garrison | Destroyed B-75 Beast 7699 | -6/Garrison | Lost 3 parts (1n1u1w) 7773 | -6/Garrison | Lost 3 parts (3u) 7782 | -6/Garrison | Triggered checkpoint 7799 | -6/Garrison | Garrison Relay disabled 7923 | -6/Garrison | Heavy support dispatched to Factory 8064 | -6/Garrison | Triggered checkpoint 8122 | -6/Garrison | Triggered checkpoint 8205 | -6/Garrison | Garrison Relay disabled 8292 | -6/Garrison | Discovered new exit (range 13) 8356 | -6/Garrison | Triggered checkpoint 8420 | -6/Garrison | Triggered checkpoint 8444 | -6/Garrison | Discovered new exit (range 13) 8487 | -6/Garrison | Lost 5 parts (1u4w) 8529 | -6/Garrison | Heavy support dispatched to Factory 8676 | -6/Garrison | Triggered checkpoint 8704 | -6/Garrison | Heavy support dispatched to Factory 8791 | -6/Garrison | Discovered new exit (range 13) 8819 | -6/Garrison | Expanded RIF knowledge: Structural Interface 8890 | -6/Garrison | Heavy support dispatched to Factory 8995 | -6/Garrison | Entered Factory 8995 | -5/Factory | Accompanied by 2 allies 8995 | -5/Factory | Evolved 2 slots: Propulsion x1, Utility x1 9432 | -5/Factory | Sucked down chute 9432 | -5/Factory | Entered Waste 9464 | -5/Waste | Spotted C-40 Crusher 9472 | -5/Waste | 1 allies followed down the chute 9473 | -5/Waste | Spotted C-40 Crusher 9480 | -5/Waste | Spotted C-40 Crusher 9497 | -5/Waste | Spotted C-40 Crusher 9535 | -5/Waste | Destroyed C-40 Crusher 9560 | -5/Waste | Destroyed C-40 Crusher 9579 | -5/Waste | Destroyed C-40 Crusher 9597 | -5/Waste | Spotted C-40 Crusher 9636 | -5/Waste | Found Damper Plating 9730 | -5/Waste | Destroyed C-40 Crusher 9763 | -5/Waste | Found Damper Plating 9782 | -5/Waste | Spotted C-40 Crusher 9868 | -5/Waste | Build established: Scavenger-Tank 10022 | -5/Waste | Discovered new exit (range 16) 10097 | -5/Waste | Entered Factory 10631 | -5/Factory | Identified exit to Upper Caves 10650 | -5/Factory | Discovered new exit (range 10) 11415 | -5/Factory | Discovered new exit (range 14) 11731 | -5/Factory | Identified exit to Garrison 11738 | -5/Factory | Entered Garrison 11738 | -5/Garrison | Discovered recently destroyed garrison 11847 | -5/Garrison | Garrison Relay disabled 12080 | -5/Garrison | Discovered new exit (range 12) 12147 | -5/Garrison | Garrison Relay disabled 12190 | -5/Garrison | Rewired Executioner 12328 | -5/Garrison | Discovered new exit (range 12) 12354 | -5/Garrison | Expanded RIF knowledge: Robot Detection 12399 | -5/Garrison | Garrison Relay disabled 12443 | -5/Garrison | Build established: Bothacker-Tank 12593 | -5/Garrison | Garrison Relay disabled 12716 | -5/Garrison | Discovered new exit (range 2) 12768 | -5/Garrison | Entered Factory 12768 | -4/Factory | Accompanied by 7 allies 12768 | -4/Factory | Evolved 2 slots: Utility x2 12920 | -4/Factory | Garrison activated, responded to threat 12963 | -4/Factory | Sucked down chute 12963 | -4/Factory | Entered Waste 12979 | -4/Waste | Spotted C-40 Crusher 13007 | -4/Waste | Allies destroyed C-40 Crusher 13009 | -4/Waste | Spotted C-40 Crusher 13019 | -4/Waste | Allies destroyed C-40 Crusher 13033 | -4/Waste | 5 allies followed down the chute 13039 | -4/Waste | Spotted C-40 Crusher 13043 | -4/Waste | Spotted C-40 Crusher 13052 | -4/Waste | Allies destroyed C-40 Crusher 13055 | -4/Waste | Allies destroyed C-40 Crusher 13072 | -4/Waste | Spotted C-40 Crusher 13077 | -4/Waste | Spotted C-40 Crusher 13083 | -4/Waste | Destroyed C-40 Crusher 13086 | -4/Waste | Allies destroyed C-40 Crusher 13092 | -4/Waste | Found Damper Plating 13265 | -4/Waste | Discovered new exit (range 13) 13435 | -4/Waste | Entered Factory 13435 | -4/Factory | Accompanied by 3 allies 13477 | -4/Factory | Identified exit to Garrison 13477 | -4/Factory | Entered Garrison 13477 | -4/Garrison | Accompanied by 3 allies 13505 | -4/Garrison | Triggered checkpoint 13580 | -4/Garrison | Garrison Relay disabled 13651 | -4/Garrison | Triggered checkpoint 13663 | -4/Garrison | Triggered checkpoint 13685 | -4/Garrison | Triggered checkpoint 13911 | -4/Garrison | Discovered new exit (range 10) 13955 | -4/Garrison | Triggered checkpoint 14101 | -4/Garrison | Discovered new exit (range 13) 14307 | -4/Garrison | Triggered checkpoint 14539 | -4/Garrison | Expanded RIF knowledge: Code Merge 14568 | -4/Garrison | Garrison Relay disabled 14611 | -4/Garrison | Discovered new exit (range 11) 14632 | -4/Garrison | Entered Factory 14632 | -4/Factory | Accompanied by 2 allies 14943 | -4/Factory | Build established: Tank 15005 | -4/Factory | Garrison activated, responded to threat 15068 | -4/Factory | Identified exit to Garrison 15068 | -4/Factory | Entered Garrison 15121 | -4/Garrison | Spotted B-86 Titan 15186 | -4/Garrison | Destroyed B-86 Titan 15202 | -4/Garrison | Triggered checkpoint 15262 | -4/Garrison | Triggered checkpoint 15419 | -4/Garrison | Lost 9 parts (1p2n2u4w) 15435 | -4/Garrison | Build established: Scavenger-Tank 15528 | -4/Garrison | Triggered checkpoint 15712 | -4/Garrison | Triggered checkpoint 15736 | -4/Garrison | Garrison Relay disabled 15877 | -4/Garrison | Discovered new exit (range 10) 16035 | -4/Garrison | Build established: Botlord-Gunner 16036 | -4/Garrison | Triggered checkpoint 16083 | -4/Garrison | Garrison Relay disabled 16231 | -4/Garrison | Discovered new exit (range 5) 16280 | -4/Garrison | Triggered checkpoint 16319 | -4/Garrison | Garrison Relay disabled 16361 | -4/Garrison | System corruption reached 10% 16553 | -4/Garrison | Expanded RIF knowledge: Program Shield 16755 | -4/Garrison | Entered Research 16755 | -3/Research | Evolved 2 slots: Utility x2 17022 | -3/Research | Found Quantum Capacitor 17220 | -3/Research | Discovered new exit (range 10) 17226 | -3/Research | Build established: Botlord-Tank 17590 | -3/Research | Build established: Bothacker-Tank 17625 | -3/Research | Entered another Research area 17625 | -2/Research | Evolved 2 slots: Propulsion x2 17874 | -2/Research | Garrison activated, responded to threat 17910 | -2/Research | Spotted B-90 Cyclops 17977 | -2/Research | Destroyed B-90 Cyclops 18044 | -2/Research | Lost 7 parts (1p1n2u3w) 18143 | -2/Research | Identified exit to Garrison 18161 | -2/Research | Entered Garrison 18191 | -2/Garrison | Lost 4 parts (2n1u1w) 18222 | -2/Garrison | Spotted B-90 Cyclops 18250 | -2/Garrison | Destroyed B-90 Cyclops 18407 | -2/Garrison | Triggered checkpoint 18432 | -2/Garrison | Triggered checkpoint 18491 | -2/Garrison | Triggered checkpoint 18514 | -2/Garrison | Discovered new exit (range 3) 18518 | -2/Garrison | Entered Research 18616 | -2/Research | Build established: Scavenger-Mutant 19376 | -2/Research | System corruption reached 10% 19444 | -2/Research | Build established: Scavenger-Tank 19603 | -2/Research | Identified exit to Garrison 19652 | -2/Research | Entered Garrison 19692 | -2/Garrison | Triggered checkpoint 19698 | -2/Garrison | Garrison Relay disabled 20022 | -2/Garrison | Lost 3 parts (2u1w) 20024 | -2/Garrison | Destroyed 10 combat bots 20114 | -2/Garrison | Triggered checkpoint 20114 | -2/Garrison | Spotted B-90 Cyclops 20146 | -2/Garrison | Triggered checkpoint 20171 | -2/Garrison | Destroyed B-90 Cyclops 20265 | -2/Garrison | Lost 3 allies 20313 | -2/Garrison | Expanded RIF knowledge: Threat Obfuscation 20325 | -2/Garrison | Discovered new exit (range 12) 20450 | -2/Garrison | Triggered checkpoint 20464 | -2/Garrison | Garrison Relay disabled 20580 | -2/Garrison | Triggered checkpoint 20827 | -2/Garrison | Discovered new exit (range 10) 20862 | -2/Garrison | Triggered checkpoint 20901 | -2/Garrison | Garrison Relay disabled 20907 | -2/Garrison | System corruption reached 30% 21052 | -2/Garrison | Entered Access 21052 | -1/Access | Accompanied by 1 ally 21052 | -1/Access | Evolved 2 slots: Power x1, Utility x1 21226 | -1/Access | Build established: Botlord-Tank 21312 | -1/Access | Identified exit to Garrison 21312 | -1/Access | Entered Garrison 21312 | -1/Garrison | Accompanied by 1 ally 21356 | -1/Garrison | Triggered checkpoint 21426 | -1/Garrison | Garrison Relay disabled 21438 | -1/Garrison | Triggered checkpoint 21675 | -1/Garrison | Expanded RIF knowledge: Coupler Efficiency 21871 | -1/Garrison | Garrison Relay disabled 21896 | -1/Garrison | Triggered checkpoint 21945 | -1/Garrison | Spotted B-99 Colossus 21948 | -1/Garrison | Triggered checkpoint 21953 | -1/Garrison | Assimilated Colossus 10a with formatsys_high 21966 | -1/Garrison | Triggered checkpoint 22080 | -1/Garrison | Triggered checkpoint 22286 | -1/Garrison | Triggered checkpoint 22399 | -1/Garrison | Garrison Relay disabled 22573 | -1/Garrison | Discovered new exit (range 10) 22595 | -1/Garrison | Entered Access 22845 | -1/Access | First assault squad dispatched 22911 | -1/Access | Spotted B-99 Colossus 22924 | -1/Access | Assimilated Colossus 10b with formatsys_high 23878 | -1/Access | P-80 Master assimilated allied Artificer 10a 23908 | -1/Access | Found Prototype Ballistic Gun 23908 | -1/Access | Identified Multirail 23933 | -1/Access | Found Hvy. Reflective Plating 24080 | -1/Access | Allied Derelicts emerged from ambush trap array 24355 | -1/Access | Lost 5 allies 24548 | -1/Access | System corruption reached 10% 24660 | -1/Access | Spotted B-99 Colossus 24663 | -1/Access | Spotted B-99 Colossus 24681 | -1/Access | Destroyed B-99 Colossus 24709 | -1/Access | Destroyed B-99 Colossus 24802 | -1/Access | Discovered new exit (range 10) 24823 | -1/Access | System corruption reached 30% 24851 | -1/Access | Lost 5 parts (2n3u) 24859 | -1/Access | Destroyed 11 combat bots 25306 | *** | Escaped! Last Messages --------------- 25255_ Acquired 22 matter. 25256_ >> Watcher Feeds: Feed link from W-44 Eye lost. 25259_ R-10 Processor collects Gamma Rifle. 25263_ R-10 Processor collects Mic. Antimatter Reactor. 25266_ Acquired Prototype Ballistic Gun. 25266_ Identified XL Autogun Subcomponent. 25267_ R-10 Processor collects Lgt. Ion Engine. 25269_ System corrupted: Matter fused (-9). 25269_ >> Watcher Feeds: Feed link from W-44 Eye lost. 25269_ Acquired XL Autogun Subcomponent. 25270_ R-10 Processor collects Adv. Heat Sink. 25273_ Acquired XL Autogun Subcomponent. 25280_ The unstable cave ceiling collapses. 25284_ &FCEBVMLLJ>G6D#MUVI5K2Y=UJY>= 25287_ >> Watcher Feeds: Established visual feed link with W-44 Eye. 25287_ The unstable cave ceiling collapses. 25288_ >> Watcher Feeds: Feed link from W-44 Eye lost. 25301_ System corrupted: Component data lost. [Achievement: 50k Club] [Achievement: One Last FU] Map ----- +----------------------------------------------------+ | ##+#+#############+### ###############???????? | | #?# " # #?????????????????????? | | #?# """ # #?????????????????????? | | #?# """ ==# #?????????????????????? | | #?# " !%+ #?????????????????????? | | ### % !#%! ####??????????????????? | | !# |## #??????????????????? | | " ### #% % # ##?????????????????? | | """ #?# #%* ## #?????????????????? | | """#?########### ! #?????????????????? | | " #????????# ! #??????????????????? | | #????????# #??????????????????? | | = #????????# #??????????????????? | | ##+###########?????# #??????????????????? | | #?????# #??????????????????? | | #?????# #??????????????????? | | " #?????# #??????????????????? | | """ #?????#""""" """"#??????????????????? | | """ #??????????" "??????????????????????? | | % " #??????????" "??????????????????????? | | #?????#""""" """"#??????????????????? | | ! #?????# #??????????????????? | | ##############?????# """ "" #??????????????????? | | ##??????????" " #??????????????????? | | #???????????" "" " #??????????????????? | | # ###### #???????????" "@ " #??????????????????? | | # #????# #???????????" " #??????????????????? | | #+###### #????????#??"""""" #??????????????????? | | = # #????????# #????###########???? | | # #????????# ##???# # | | # #????????""""""""""""#???# # | | # #????????#"" ##???# " # | | # #????????#"" #????# """ # "" | | !!! + #????????#"" #????# """ # " | | !!! # #????????#T #????# " # | | !! # #????????#"" #????# # | | ######## ##???????#"" #???## = ##++# | | ####### #########"" =[= %[#####"######+### | | T" %=[*%= ! =[=%=!* | | "" % **[%==!**%= [!!%%!%= | | ####### %###############################+### | | ??######+#######????????????????????# !## # | | ??# #????????????????????# ## # | | ??# #????????????????????# ! ## # | | ??# #????????????????????# " ## # | | ??# ] #????????????????????# """ ## # | | ??# #????????????????????# """ ## # | | ??# #????????????????????# " ## # | | ??# #???????###+####?????# # | | ??# #???????# #?????# ] + T" | +----------------------------------------------------+ Best States ------------- Heat Dissipation 155 Coolant Potential 100 Energy Generation 57 Energy Capacity 1840 Matter Stores 300 Matter Capacity 300 Sight Range 18 Robot Scan Range 15 Terrain Scan Range 20 Terrain Scan Density 10 Jamming Range 14 Power Amplification 30 Additional Mass Support 12 Corruption Block 5 Armor Coverage 3200 Resistance: KI 25 Resistance: TH 25 Resistance: EM 90 Core Shielding 30 Power Shielding 33 Utility Shielding 66 Weapon Shielding 66 Phase Shifting 15 Evasion (%) 55 Targeting Accuracy 8 Launcher Accuracy 40 Target Analysis 8 Recoil Reduction 6 Offensive Hacking 10 Defensive Hacking 14 Relay Coupler Types 5 Relay Coupler Value 203 Authchip Count 1 Item Schematics ----------------- None Robot Schematics ------------------ None Fabricated ------------ Nothing Repaired ---------- Shock Rifle | 7% | -8/Materials Studied --------- Hvy. Treads | -5/Factory | Hacked Imp. Remote Datajack | -4/Factory | Hacked Alien Tech Used ----------------- None Achievements -------------- 50k Club Beloved Fitting Room Ghost 'Em Giant Slayer Hackathon Hackerman Morally Flexible One Last FU Pwned Pyromaniac Taming Of The Crushers Watcher Gambling Well-fed Force Field Challenges ------------ None Game ------ Seed ShockboltWeaponSpear Manual? 0 Play Time 07:28:21 Cumulative 146.1 hours Start 2026.01.04 @ 17:34:25 End 2026.01.13 @ 20:39:53 Sessions 14 Manual Loads 0 Difficulty Rogue Special Mode None Game No. 58 Rogue 58 Adventurer 0 Explorer 0 Win Type 0 Total 7 Types 6/0/0/1/0/0/0/0/0/0 Lore% 51 Gallery% 54 Achievement% 44 Wizard Run 0 Options --------- Layout 0 ASCII 0 Keyboard 0 Movement Arrows Keybinds 0 Fullscreen 2 Font 18/Terminus Map View 76x50 Zoom Use 0% Tactical HUD 1 Map Filters NONE Filters NONE Steam 1 RUN: e9b044dd-ac3f-42f8-8ad0-61fefda3aae4